Workbook

Sheet Feuil1 (hidden)
C1: FC1 40 | D1: FC1 44 | E1: FC1 48 | F1: FC1 53 | G1: FC1 58 | H1: FC1 63 | I1: FC1 69 | J1: FC1 +69 | K1: FC2 44 | L1: FC2 48 | M1: FC2 53 | N1: FC2 58 | O1: FC2 63 | P1: FC2 69 | Q1: FC2 +69 | R1: FJ48 | S1: FJ53 | T1: FJ58 | U1: FJ63 | V1: FJ69 | W1: FJ75 | X1: FJ+75 | Y1: FS48 | Z1: FS53 | AA1: FS58 | AB1: FS63 | AC1: FS69 | AD1: FS75 | AE1: FS+75 | AF1: C1 45 | AG1: C1 50 | AH1: C1 56 | AI1: C1 62 | AJ1: C1 69 | AK1: C1 77 | AL1: C1 85 | AM1: C1 94 | AN1: C1 +94 | AO1: C2 50 | AP1: C2 56 | AQ1: C2 62 | AR1: C2 69 | AS1: C2 77 | AT1: C2 85 | AU1: C2 94 | AV1: C2 +94 | AW1: J56 | AX1: J62 | AY1: J69 | AZ1: J77 | BA1: J85 | BB1: J94 | BC1: J105 | BD1: J+105 | BE1: S56 | BF1: S62 | BG1: S69 | BH1: S77 | BI1: S85 | BJ1: S94 | BK1: S105 | BL1: S+105
B2: DEBUTANT | C2: 20 | D2: 25 | E2: 30 | F2: 35 | G2: 40 | H2: 45 | I2: 50 | J2: 60 | K2: 30 | L2: 35 | M2: 45 | N2: 50 | O2: 55 | P2: 60 | Q2: 70 | R2: 45 | S2: 55 | T2: 60 | U2: 65 | V2: 70 | W2: 80 | X2: 90 | Y2: 55 | Z2: 65 | AA2: 70 | AB2: 75 | AC2: 80 | AD2: 95 | AE2: 100 | AF2: 35 | AG2: 40 | AH2: 50 | AI2: 75 | AJ2: 85 | AK2: 90 | AL2: 100 | AM2: 110 | AN2: 120 | AO2: 45 | AP2: 65 | AQ2: 85 | AR2: 95 | AS2: 110 | AT2: 120 | AU2: 125 | AV2: 135 | AW2: 80 | AX2: 90 | AY2: 110 | AZ2: 130 | BA2: 145 | BB2: 150 | BC2: 155 | BD2: 165 | BE2: 95 | BF2: 120 | BG2: 130 | BH2: 150 | BI2: 165 | BJ2: 170 | BK2: 175 | BL2: 185
B3: DEPARTEMENTAL | C3: 25 | D3: 30 | E3: 35 | F3: 45 | G3: 50 | H3: 55 | I3: 60 | J3: 70 | K3: 40 | L3: 45 | M3: 55 | N3: 60 | O3: 65 | P3: 70 | Q3: 80 | R3: 55 | S3: 65 | T3: 70 | U3: 75 | V3: 80 | W3: 95 | X3: 100 | Y3: 65 | Z3: 75 | AA3: 80 | AB3: 85 | AC3: 90 | AD3: 105 | AE3: 110 | AF3: 50 | AG3: 55 | AH3: 70 | AI3: 95 | AJ3: 105 | AK3: 110 | AL3: 120 | AM3: 130 | AN3: 140 | AO3: 65 | AP3: 85 | AQ3: 105 | AR3: 115 | AS3: 130 | AT3: 140 | AU3: 145 | AV3: 155 | AW3: 100 | AX3: 120 | AY3: 130 | AZ3: 150 | BA3: 165 | BB3: 170 | BC3: 175 | BD3: 185 | BE3: 115 | BF3: 135 | BG3: 150 | BH3: 170 | BI3: 185 | BJ3: 190 | BK3: 195 | BL3: 205
B4: REGIONAL | C4: 35 | D4: 40 | E4: 45 | F4: 55 | G4: 60 | H4: 65 | I4: 70 | J4: 80 | K4: 50 | L4: 55 | M4: 65 | N4: 70 | O4: 75 | P4: 80 | Q4: 95 | R4: 65 | S4: 75 | T4: 80 | U4: 85 | V4: 90 | W4: 105 | X4: 110 | Y4: 75 | Z4: 85 | AA4: 90 | AB4: 95 | AC4: 105 | AD4: 115 | AE4: 125 | AF4: 60 | AG4: 65 | AH4: 85 | AI4: 105 | AJ4: 115 | AK4: 130 | AL4: 140 | AM4: 145 | AN4: 155 | AO4: 80 | AP4: 100 | AQ4: 120 | AR4: 130 | AS4: 150 | AT4: 160 | AU4: 165 | AV4: 175 | AW4: 115 | AX4: 135 | AY4: 150 | AZ4: 170 | BA4: 185 | BB4: 190 | BC4: 195 | BD4: 205 | BE4: 130 | BF4: 150 | BG4: 170 | BH4: 190 | BI4: 205 | BJ4: 215 | BK4: 220 | BL4: 225
B5: INTERREGIONAL | C5: 45 | D5: 50 | E5: 55 | F5: 65 | G5: 70 | H5: 75 | I5: 80 | J5: 95 | K5: 60 | L5: 65 | M5: 75 | N5: 80 | O5: 85 | P5: 90 | Q5: 105 | R5: 75 | S5: 85 | T5: 90 | U5: 95 | V5: 105 | W5: 115 | X5: 125 | Y5: 85 | Z5: 95 | AA5: 100 | AB5: 110 | AC5: 120 | AD5: 130 | AE5: 140 | AF5: 75 | AG5: 80 | AH5: 100 | AI5: 120 | AJ5: 130 | AK5: 150 | AL5: 160 | AM5: 165 | AN5: 175 | AO5: 95 | AP5: 115 | AQ5: 135 | AR5: 150 | AS5: 170 | AT5: 180 | AU5: 185 | AV5: 195 | AW5: 130 | AX5: 150 | AY5: 170 | AZ5: 190 | BA5: 205 | BB5: 215 | BC5: 220 | BD5: 225 | BE5: 145 | BF5: 170 | BG5: 190 | BH5: 210 | BI5: 225 | BJ5: 235 | BK5: 245 | BL5: 250
B6: FEDERAL | C6: 50 | D6: 60 | E6: 65 | F6: 75 | G6: 80 | H6: 85 | I6: 90 | J6: 105 | K6: 70 | L6: 75 | M6: 85 | N6: 90 | O6: 95 | P6: 105 | Q6: 115 | R6: 85 | S6: 95 | T6: 100 | U6: 110 | V6: 120 | W6: 130 | X6: 140 | Y6: 95 | Z6: 105 | AA6: 115 | AB6: 125 | AC6: 135 | AD6: 145 | AE6: 150 | AF6: 90 | AG6: 95 | AH6: 115 | AI6: 135 | AJ6: 150 | AK6: 170 | AL6: 180 | AM6: 185 | AN6: 195 | AO6: 110 | AP6: 130 | AQ6: 150 | AR6: 170 | AS6: 185 | AT6: 200 | AU6: 210 | AV6: 220 | AW6: 145 | AX6: 170 | AY6: 190 | AZ6: 210 | BA6: 225 | BB6: 235 | BC6: 245 | BD6: 250 | BE6: 170 | BF6: 190 | BG6: 220 | BH6: 240 | BI6: 250 | BJ6: 260 | BK6: 270 | BL6: 280
B7: NATIONAL | C7: 60 | D7: 70 | E7: 75 | F7: 85 | G7: 90 | H7: 95 | I7: 105 | J7: 115 | K7: 80 | L7: 85 | M7: 95 | N7: 100 | O7: 110 | P7: 120 | Q7: 130 | R7: 95 | S7: 105 | T7: 115 | U7: 125 | V7: 135 | W7: 145 | X7: 150 | Y7: 110 | Z7: 120 | AA7: 130 | AB7: 140 | AC7: 150 | AD7: 160 | AE7: 170 | AF7: 105 | AG7: 110 | AH7: 130 | AI7: 150 | AJ7: 170 | AK7: 185 | AL7: 200 | AM7: 210 | AN7: 220 | AO7: 120 | AP7: 145 | AQ7: 170 | AR7: 190 | AS7: 200 | AT7: 220 | AU7: 225 | AV7: 235 | AW7: 170 | AX7: 190 | AY7: 220 | AZ7: 240 | BA7: 250 | BB7: 260 | BC7: 270 | BD7: 280 | BE7: 190 | BF7: 210 | BG7: 240 | BH7: 265 | BI7: 280 | BJ7: 290 | BK7: 300 | BL7: 310
B8: INTERNATIONAL B | C8: 70 | D8: 80 | E8: 85 | F8: 95 | G8: 100 | H8: 110 | I8: 120 | J8: 130 | K8: 90 | L8: 95 | M8: 105 | N8: 115 | O8: 125 | P8: 135 | Q8: 145 | R8: 110 | S8: 120 | T8: 130 | U8: 140 | V8: 150 | W8: 160 | X8: 170 | Y8: 125 | Z8: 140 | AA8: 150 | AB8: 160 | AC8: 170 | AD8: 180 | AE8: 190 | AF8: 115 | AG8: 120 | AH8: 145 | AI8: 170 | AJ8: 190 | AK8: 200 | AL8: 220 | AM8: 225 | AN8: 235 | AO8: 135 | AP8: 170 | AQ8: 190 | AR8: 210 | AS8: 220 | AT8: 240 | AU8: 250 | AV8: 260 | AW8: 190 | AX8: 210 | AY8: 240 | AZ8: 260 | BA8: 280 | BB8: 290 | BC8: 300 | BD8: 310 | BE8: 210 | BF8: 230 | BG8: 260 | BH8: 285 | BI8: 300 | BJ8: 310 | BK8: 325 | BL8: 330
B9: INTERNATIONAL A | C9: 80 | D9: 90 | E9: 95 | F9: 105 | G9: 115 | H9: 125 | I9: 135 | J9: 145 | K9: 100 | L9: 110 | M9: 120 | N9: 130 | O9: 140 | P9: 150 | Q9: 160 | R9: 125 | S9: 135 | T9: 150 | U9: 160 | V9: 170 | W9: 180 | X9: 190 | Y9: 140 | Z9: 160 | AA9: 170 | AB9: 180 | AC9: 190 | AD9: 195 | AE9: 210 | AF9: 130 | AG9: 135 | AH9: 170 | AI9: 190 | AJ9: 210 | AK9: 220 | AL9: 240 | AM9: 250 | AN9: 260 | AO9: 150 | AP9: 190 | AQ9: 210 | AR9: 230 | AS9: 250 | AT9: 260 | AU9: 280 | AV9: 280 | AW9: 210 | AX9: 230 | AY9: 250 | AZ9: 285 | BA9: 300 | BB9: 310 | BC9: 325 | BD9: 330 | BE9: 225 | BF9: 255 | BG9: 275 | BH9: 305 | BI9: 325 | BJ9: 330 | BK9: 345 | BL9: 355
B10: OLYMPIQUE | C10: 1000 | D10: 1000 | E10: 1000 | F10: 1000 | G10: 1000 | H10: 1000 | I10: 1000 | J10: 1000 | K10: 1000 | L10: 1000 | M10: 1000 | N10: 1000 | O10: 1000 | P10: 1000 | Q10: 1000 | R10: 1000 | S10: 1000 | T10: 1000 | U10: 1000 | V10: 1000 | W10: 1000 | X10: 1000 | Y10: 155 | Z10: 175 | AA10: 190 | AB10: 200 | AC10: 205 | AD10: 210 | AE10: 225 | AF10: 1000 | AG10: 1000 | AH10: 1000 | AI10: 1000 | AJ10: 1000 | AK10: 1000 | AL10: 10000 | AM10: 1000 | AN10: 1000 | AO10: 1000 | AP10: 1000 | AQ10: 1000 | AR10: 1000 | AS10: 1000 | AT10: 10000 | AU10: 1000 | AV10: 1000 | AW10: 1000 | AX10: 1000 | AY10: 1000 | AZ10: 10000 | BA10: 1000 | BB10: 1000 | BC10: 1000 | BD10: 10000 | BE10: 240 | BF10: 270 | BG10: 290 | BH10: 320 | BI10: 345 | BJ10: 355 | BK10: 365 | BL10: 375
B11: MINIME | C11: CADET | D11: CADET | E11: JUNIOR | F11: SENIOR | H11: MINIME | I11: CADETTE | J11: CADETTE | K11: JUNIOR | L11: SENIOR
A12: 20.01 | B12: NON | C12: C1 45 | D12: C2 50 | E12: J56 | F12: S56 | G12: 20.01 | H12: NON | I12: FC1 40 | J12: FC2 44 | K12: FJ48 | L12: FS48
A13: 34.01 | B13: NON | C13: C1 45 | D13: C2 50 | E13: J56 | F13: S56 | G13: 30.01 | H13: NON | I13: FC1 40 | J13: FC2 44 | K13: FJ48 | L13: FS48
A14: 38.01 | B14: NON | C14: C1 45 | D14: C2 50 | E14: J56 | F14: S56 | G14: 35.01 | H14: NON | I14: FC1 40 | J14: FC2 44 | K14: FJ48 | L14: FS48
A15: 40.01 | B15: NON | C15: C1 45 | D15: C2 50 | E15: J56 | F15: S56 | G15: 36.01 | H15: NON | I15: FC1 40 | J15: FC2 44 | K15: FJ48 | L15: FS48
A16: 45.01 | B16: NON | C16: C1 50 | D16: C2 50 | E16: J56 | F16: S56 | G16: 40.01 | H16: NON | I16: FC1 44 | J16: FC2 44 | K16: FJ48 | L16: FS48
A17: 50.01 | B17: NON | C17: C1 56 | D17: C2 56 | E17: J56 | F17: S56 | G17: 44.01 | H17: NON | I17: FC1 48 | J17: FC2 48 | K17: FJ48 | L17: FS48
A18: 52.05 | B18: NON | C18: C1 56 | D18: C2 56 | E18: J56 | F18: S56 | G18: 48.01 | H18: NON | I18: FC1 53 | J18: FC2 53 | K18: FJ53 | L18: FS53
A19: 56.01 | B19: NON | C19: C1 62 | D19: C2 62 | E19: J62 | F19: S62 | G19: 53.01 | H19: NON | I19: FC1 58 | J19: FC2 58 | K19: FJ58 | L19: FS58
A20: 62.01 | B20: NON | C20: C1 69 | D20: C2 69 | E20: J69 | F20: S69 | G20: 58.01 | H20: NON | I20: FC1 63 | J20: FC2 63 | K20: FJ63 | L20: FS63
A21: 69.01 | B21: NON | C21: C1 77 | D21: C2 77 | E21: J77 | F21: S77 | G21: 63.01 | H21: NON | I21: FC1 69 | J21: FC2 69 | K21: FJ69 | L21: FS69
A22: 77.01 | B22: NON | C22: C1 85 | D22: C2 85 | E22: J85 | F22: S85 | G22: 69.01 | H22: NON | I22: FC1 +69 | J22: FC2 +69 | K22: FJ75 | L22: FS75
A23: 85.01 | B23: NON | C23: C1 94 | D23: C2 94 | E23: J94 | F23: S94 | G23: 75.01 | H23: NON | I23: FC1 +69 | J23: FC2 +69 | K23: FJ+75 | L23: FS+75
A24: 94.01 | B24: NON | C24: C1 +94 | D24: C2 +94 | E24: J105 | F24: S105 | G24: 110 | H24: NON | I24: FC1 +69 | J24: FC2 +69 | K24: FJ+75 | L24: FS+75
A25: 105.01 | B25: NON | C25: C1 +94 | D25: C2 +94 | E25: J+105 | F25: S+105 | G25: 140 | H25: NON | I25: FC1 +69 | J25: FC2 +69 | K25: FJ+75 | L25: FS+75
A26: 110 | B26: NON | C26: C1 +94 | D26: C2 +94 | E26: J+105 | F26: S+105
A27: 120 | B27: NON | C27: C1 +94 | D27: C2 +94 | E27: J+105 | F27: S+105
A28: 130 | B28: NON | C28: C1 +94 | D28: C2 +94 | E28: J+105 | F28: S+105
A29: 140 | B29: NON | C29: C1 +94 | D29: C2 +94 | E29: J+105 | F29: S+105

Sheet FEMMES
C1: COUPE DE FRANCE DES CLUBS JEUNES 2017 | O1: TOUR : | Y1: FEMMES CA/JU
G2: LIEU : | L2: REGION : | T2: Date :
A4: SEXE | B4: ZONE | C4: REG. | D4: CL. | E4: LICENCE | F4: NOMS | G4: Prénoms | H4: AN | I4: POIDS | J4: CLUB | K4: NAT | L4: 1 | M4: 2 | N4: 3 | O4: ARR | P4: 1 | Q4: 2 | R4: 3 | S4: EP-J | T4: Total | U4: IWF | V4: SERIE | X4: Catég | AB4: DEB | AC4: DEP + | AD4: REG + | AE4: IRG + | AF4: FED + | AG4: NAT + | AH4: INTB + | AI4: INTA + | AJ4: OLY +
B5: Tirage au sort : | H5: Classement : | L5: =IF(Y5="","",RANK(Y5,$Z$6:$Z$11,0)) -> 1 | Y5: =SUM(U6:U8) -> 691.9165866 | AB5: =T5-HLOOKUP(X5,Feuil1!$C$1:$BJ$10,2,FALSE) ->  | AC5: =T5-HLOOKUP(X5,Feuil1!$C$1:$BJ$10,3,FALSE) ->  | AD5: =T5-HLOOKUP(X5,Feuil1!$C$1:$BJ$10,4,FALSE) ->  | AE5: =T5-HLOOKUP(X5,Feuil1!$C$1:$BJ$10,5,FALSE) ->  | AF5: =T5-HLOOKUP(X5,Feuil1!$C$1:$BJ$10,6,FALSE) ->  | AG5: =T5-HLOOKUP(X5,Feuil1!$C$1:$BJ$10,7,FALSE) ->  | AH5: =T5-HLOOKUP(X5,Feuil1!$C$1:$BJ$10,8,FALSE) ->  | AI5: =T5-HLOOKUP(X5,Feuil1!$C$1:$BJ$10,9,FALSE) ->  | AJ5: =T5-HLOOKUP(X5,Feuil1!$C$1:$BJ$10,10,FALSE) ->  | AQ5: =IF(AJ5>=0,$AJ$4,IF(AI5>=0,$AI$4,IF(AH5>=0,$AH$4,IF(AG5>=0,$AG$4,IF(AF5>=0,$AF$4,IF(AE5>=0,$AE$4,IF(AD5>=0,$AD$4,IF(AC5>=0,$AC$4,$AB$4)))))))) -> 
A6: F | B6: SEST | C6: RAL | D6: 1 | H6: 1997 | I6: 53 | L6: 75 | O6: =IF(H6="","",IF(MAXA(L6:N6)<=0,0,MAXA(L6:N6))) -> 75 | P6: 89 | S6: =IF(H6="","",IF(MAXA(P6:R6)<=0,0,MAXA(P6:R6))) -> 89 | T6: =IF(I6="","",O6+S6) -> 164 | U6: =IF(I6="","",IF(A6="H",10^(0.794358141*LOG(I6/174.393)^2)*T6,IF(A6="F",10^(0.89726074*LOG(I6/148.026)^2)*T6,""))) -> 247.3848492 | V6: =IF(H6="","",AQ6) -> INTA + | W6: =IF(AJ6>=0,AJ6,IF(AI6>=0,AI6,IF(AH6>=0,AH6,IF(AG6>=0,AG6,IF(AF6>=0,AF6,IF(AE6>=0,AE6,IF(AD6>=0,AD6,IF(AC6>=0,AC6,AB6)))))))) -> 29 | X6: =IF(I6="","",IF(A6="H",IF(OR(H6="SEN",H6<1997),VLOOKUP(I6,Feuil1!$A$11:$G$29,6),IF(AND(H6>1996,H6<2000),VLOOKUP(I6,Feuil1!$A$11:$G$29,5),IF(AND(H6>1999,H6<2002),VLOOKUP(I6,Feuil1!$A$11:$G$29,4),IF(AND(H6>2001,H6<2004),VLOOKUP(I6,Feuil1!$A$11:$G$29,3),VLOOKUP(I6,Feuil1!$A$11:$G$29,2))))),IF(OR(H6="SEN",H6<1997),VLOOKUP(I6,Feuil1!$G$11:$L$25,6),IF(AND(H6>1996,H6<2000),VLOOKUP(I6,Feuil1!$G$11:$L$25,5),IF(AND(H6>1999,H6<2002),VLOOKUP(I6,Feuil1!$G$11:$L$25,4),IF(AND(H6>2001,H6<2004),VLOOKUP(I6,Feuil1!$G$11:$L$25,3),VLOOKUP(I6,Feuil1!$G$11:$L$25,2))))))) -> FJ53 | Z6: =Y5 -> 691.9165866 | AB6: =T6-HLOOKUP(X6,Feuil1!$C$1:$BJ$10,2,FALSE) -> 109 | AC6: =T6-HLOOKUP(X6,Feuil1!$C$1:$BJ$10,3,FALSE) -> 99 | AD6: =T6-HLOOKUP(X6,Feuil1!$C$1:$BJ$10,4,FALSE) -> 89 | AE6: =T6-HLOOKUP(X6,Feuil1!$C$1:$BJ$10,5,FALSE) -> 79 | AF6: =T6-HLOOKUP(X6,Feuil1!$C$1:$BJ$10,6,FALSE) -> 69 | AG6: =T6-HLOOKUP(X6,Feuil1!$C$1:$BJ$10,7,FALSE) -> 59 | AH6: =T6-HLOOKUP(X6,Feuil1!$C$1:$BJ$10,8,FALSE) -> 44 | AI6: =T6-HLOOKUP(X6,Feuil1!$C$1:$BJ$10,9,FALSE) -> 29 | AJ6: =T6-HLOOKUP(X6,Feuil1!$C$1:$BJ$10,10,FALSE) -> -836 | AQ6: =IF(AJ6>=0,$AJ$4,IF(AI6>=0,$AI$4,IF(AH6>=0,$AH$4,IF(AG6>=0,$AG$4,IF(AF6>=0,$AF$4,IF(AE6>=0,$AE$4,IF(AD6>=0,$AD$4,IF(AC6>=0,$AC$4,$AB$4)))))))) -> INTA +
A7: F | B7: SEST | C7: RAL | D7: 1 | H7: 1998 | I7: 58 | L7: 72 | O7: 72 | P7: 88 | S7: 88 | T7: =IF(I7="","",O7+S7) -> 160 | U7: 225.2602741 | V7: INTA + | W7: 10 | X7: =IF(I7="","",IF(A7="H",IF(OR(H7="SEN",H7<1997),VLOOKUP(I7,Feuil1!$A$11:$G$29,6),IF(AND(H7>1996,H7<2000),VLOOKUP(I7,Feuil1!$A$11:$G$29,5),IF(AND(H7>1999,H7<2002),VLOOKUP(I7,Feuil1!$A$11:$G$29,4),IF(AND(H7>2001,H7<2004),VLOOKUP(I7,Feuil1!$A$11:$G$29,3),VLOOKUP(I7,Feuil1!$A$11:$G$29,2))))),IF(OR(H7="SEN",H7<1997),VLOOKUP(I7,Feuil1!$G$11:$L$25,6),IF(AND(H7>1996,H7<2000),VLOOKUP(I7,Feuil1!$G$11:$L$25,5),IF(AND(H7>1999,H7<2002),VLOOKUP(I7,Feuil1!$G$11:$L$25,4),IF(AND(H7>2001,H7<2004),VLOOKUP(I7,Feuil1!$G$11:$L$25,3),VLOOKUP(I7,Feuil1!$G$11:$L$25,2))))))) -> FJ58 | Z7: =Y9 -> 628.5345681 | AB7: =T7-HLOOKUP(X7,Feuil1!$C$1:$BJ$10,2,FALSE) -> 100 | AC7: =T7-HLOOKUP(X7,Feuil1!$C$1:$BJ$10,3,FALSE) -> 90 | AD7: =T7-HLOOKUP(X7,Feuil1!$C$1:$BJ$10,4,FALSE) -> 80 | AE7: =T7-HLOOKUP(X7,Feuil1!$C$1:$BJ$10,5,FALSE) -> 70 | AF7: =T7-HLOOKUP(X7,Feuil1!$C$1:$BJ$10,6,FALSE) -> 60 | AG7: =T7-HLOOKUP(X7,Feuil1!$C$1:$BJ$10,7,FALSE) -> 45 | AH7: =T7-HLOOKUP(X7,Feuil1!$C$1:$BJ$10,8,FALSE) -> 30 | AI7: =T7-HLOOKUP(X7,Feuil1!$C$1:$BJ$10,9,FALSE) -> 10 | AJ7: =T7-HLOOKUP(X7,Feuil1!$C$1:$BJ$10,10,FALSE) -> -840 | AQ7: INTA +
A8: F | B8: SEST | C8: RAL | D8: 1 | H8: 1999 | I8: 63 | L8: 70 | O8: 70 | P8: 95 | S8: 95 | T8: 165 | U8: 219.2714633 | V8: INTA + | W8: 5 | X8: =IF(I8="","",IF(A8="H",IF(OR(H8="SEN",H8<1997),VLOOKUP(I8,Feuil1!$A$11:$G$29,6),IF(AND(H8>1996,H8<2000),VLOOKUP(I8,Feuil1!$A$11:$G$29,5),IF(AND(H8>1999,H8<2002),VLOOKUP(I8,Feuil1!$A$11:$G$29,4),IF(AND(H8>2001,H8<2004),VLOOKUP(I8,Feuil1!$A$11:$G$29,3),VLOOKUP(I8,Feuil1!$A$11:$G$29,2))))),IF(OR(H8="SEN",H8<1997),VLOOKUP(I8,Feuil1!$G$11:$L$25,6),IF(AND(H8>1996,H8<2000),VLOOKUP(I8,Feuil1!$G$11:$L$25,5),IF(AND(H8>1999,H8<2002),VLOOKUP(I8,Feuil1!$G$11:$L$25,4),IF(AND(H8>2001,H8<2004),VLOOKUP(I8,Feuil1!$G$11:$L$25,3),VLOOKUP(I8,Feuil1!$G$11:$L$25,2))))))) -> FJ63 | Z8: =Y13 -> 674.813176 | AB8: =T8-HLOOKUP(X8,Feuil1!$C$1:$BJ$10,2,FALSE) -> 100 | AC8: =T8-HLOOKUP(X8,Feuil1!$C$1:$BJ$10,3,FALSE) -> 90 | AD8: =T8-HLOOKUP(X8,Feuil1!$C$1:$BJ$10,4,FALSE) -> 80 | AE8: =T8-HLOOKUP(X8,Feuil1!$C$1:$BJ$10,5,FALSE) -> 70 | AF8: =T8-HLOOKUP(X8,Feuil1!$C$1:$BJ$10,6,FALSE) -> 55 | AG8: =T8-HLOOKUP(X8,Feuil1!$C$1:$BJ$10,7,FALSE) -> 40 | AH8: =T8-HLOOKUP(X8,Feuil1!$C$1:$BJ$10,8,FALSE) -> 25 | AI8: =T8-HLOOKUP(X8,Feuil1!$C$1:$BJ$10,9,FALSE) -> 5 | AJ8: =T8-HLOOKUP(X8,Feuil1!$C$1:$BJ$10,10,FALSE) -> -835 | AQ8: INTA +
B9: Tirage au sort : | H9: Classement : | L9: =IF(Y9="","",RANK(Y9,$Z$6:$Z$11,0)) -> 5 | Y9: =SUM(U10:U12) -> 628.5345681 | Z9: =Y17 -> 633.8859524
A10: F | B10: SEST | C10: RAL | D10: 1 | H10: 1999 | I10: 85 | L10: -70 | M10: -70 | N10: -70 | O10: 0 | P10: 80 | S10: 80 | T10: =IF(I10="","",O10+S10) -> 80 | U10: 90.19216184 | V10: DEB | W10: -10 | X10: =IF(I10="","",IF(A10="H",IF(OR(H10="SEN",H10<1997),VLOOKUP(I10,Feuil1!$A$11:$G$29,6),IF(AND(H10>1996,H10<2000),VLOOKUP(I10,Feuil1!$A$11:$G$29,5),IF(AND(H10>1999,H10<2002),VLOOKUP(I10,Feuil1!$A$11:$G$29,4),IF(AND(H10>2001,H10<2004),VLOOKUP(I10,Feuil1!$A$11:$G$29,3),VLOOKUP(I10,Feuil1!$A$11:$G$29,2))))),IF(OR(H10="SEN",H10<1997),VLOOKUP(I10,Feuil1!$G$11:$L$25,6),IF(AND(H10>1996,H10<2000),VLOOKUP(I10,Feuil1!$G$11:$L$25,5),IF(AND(H10>1999,H10<2002),VLOOKUP(I10,Feuil1!$G$11:$L$25,4),IF(AND(H10>2001,H10<2004),VLOOKUP(I10,Feuil1!$G$11:$L$25,3),VLOOKUP(I10,Feuil1!$G$11:$L$25,2))))))) -> FJ+75 | Z10: =Y21 -> 639.2559922 | AB10: =T10-HLOOKUP(X10,Feuil1!$C$1:$BJ$10,2,FALSE) -> -10 | AC10: =T10-HLOOKUP(X10,Feuil1!$C$1:$BJ$10,3,FALSE) -> -20 | AD10: =T10-HLOOKUP(X10,Feuil1!$C$1:$BJ$10,4,FALSE) -> -30 | AE10: =T10-HLOOKUP(X10,Feuil1!$C$1:$BJ$10,5,FALSE) -> -45 | AF10: =T10-HLOOKUP(X10,Feuil1!$C$1:$BJ$10,6,FALSE) -> -60 | AG10: =T10-HLOOKUP(X10,Feuil1!$C$1:$BJ$10,7,FALSE) -> -70 | AH10: =T10-HLOOKUP(X10,Feuil1!$C$1:$BJ$10,8,FALSE) -> -90 | AI10: =T10-HLOOKUP(X10,Feuil1!$C$1:$BJ$10,9,FALSE) -> -110 | AJ10: =T10-HLOOKUP(X10,Feuil1!$C$1:$BJ$10,10,FALSE) -> -920 | AQ10: DEB
A11: F | B11: SEST | C11: RAL | D11: 1 | H11: 2002 | I11: 69 | L11: 90 | O11: 90 | P11: 110 | S11: 110 | T11: =IF(I11="","",O11+S11) -> 200 | U11: 250.9720753 | V11: INTA + | W11: 65 | X11: =IF(I11="","",IF(A11="H",IF(OR(H11="SEN",H11<1997),VLOOKUP(I11,Feuil1!$A$11:$G$29,6),IF(AND(H11>1996,H11<2000),VLOOKUP(I11,Feuil1!$A$11:$G$29,5),IF(AND(H11>1999,H11<2002),VLOOKUP(I11,Feuil1!$A$11:$G$29,4),IF(AND(H11>2001,H11<2004),VLOOKUP(I11,Feuil1!$A$11:$G$29,3),VLOOKUP(I11,Feuil1!$A$11:$G$29,2))))),IF(OR(H11="SEN",H11<1997),VLOOKUP(I11,Feuil1!$G$11:$L$25,6),IF(AND(H11>1996,H11<2000),VLOOKUP(I11,Feuil1!$G$11:$L$25,5),IF(AND(H11>1999,H11<2002),VLOOKUP(I11,Feuil1!$G$11:$L$25,4),IF(AND(H11>2001,H11<2004),VLOOKUP(I11,Feuil1!$G$11:$L$25,3),VLOOKUP(I11,Feuil1!$G$11:$L$25,2))))))) -> FC1 69 | Z11: =Y25 -> 508.3665196 | AB11: =T11-HLOOKUP(X11,Feuil1!$C$1:$BJ$10,2,FALSE) -> 150 | AC11: =T11-HLOOKUP(X11,Feuil1!$C$1:$BJ$10,3,FALSE) -> 140 | AD11: =T11-HLOOKUP(X11,Feuil1!$C$1:$BJ$10,4,FALSE) -> 130 | AE11: =T11-HLOOKUP(X11,Feuil1!$C$1:$BJ$10,5,FALSE) -> 120 | AF11: =T11-HLOOKUP(X11,Feuil1!$C$1:$BJ$10,6,FALSE) -> 110 | AG11: =T11-HLOOKUP(X11,Feuil1!$C$1:$BJ$10,7,FALSE) -> 95 | AH11: =T11-HLOOKUP(X11,Feuil1!$C$1:$BJ$10,8,FALSE) -> 80 | AI11: =T11-HLOOKUP(X11,Feuil1!$C$1:$BJ$10,9,FALSE) -> 65 | AJ11: =T11-HLOOKUP(X11,Feuil1!$C$1:$BJ$10,10,FALSE) -> -800 | AQ11: INTA +
A12: F | B12: SEST | C12: RAL | D12: 1 | H12: 2000 | I12: 75 | L12: 110 | O12: 110 | P12: 130 | S12: 130 | T12: 240 | U12: 287.370331 | V12: INTA + | W12: 80 | X12: =IF(I12="","",IF(A12="H",IF(OR(H12="SEN",H12<1997),VLOOKUP(I12,Feuil1!$A$11:$G$29,6),IF(AND(H12>1996,H12<2000),VLOOKUP(I12,Feuil1!$A$11:$G$29,5),IF(AND(H12>1999,H12<2002),VLOOKUP(I12,Feuil1!$A$11:$G$29,4),IF(AND(H12>2001,H12<2004),VLOOKUP(I12,Feuil1!$A$11:$G$29,3),VLOOKUP(I12,Feuil1!$A$11:$G$29,2))))),IF(OR(H12="SEN",H12<1997),VLOOKUP(I12,Feuil1!$G$11:$L$25,6),IF(AND(H12>1996,H12<2000),VLOOKUP(I12,Feuil1!$G$11:$L$25,5),IF(AND(H12>1999,H12<2002),VLOOKUP(I12,Feuil1!$G$11:$L$25,4),IF(AND(H12>2001,H12<2004),VLOOKUP(I12,Feuil1!$G$11:$L$25,3),VLOOKUP(I12,Feuil1!$G$11:$L$25,2))))))) -> FC2 +69 | AB12: =T12-HLOOKUP(X12,Feuil1!$C$1:$BJ$10,2,FALSE) -> 170 | AC12: =T12-HLOOKUP(X12,Feuil1!$C$1:$BJ$10,3,FALSE) -> 160 | AD12: =T12-HLOOKUP(X12,Feuil1!$C$1:$BJ$10,4,FALSE) -> 145 | AE12: =T12-HLOOKUP(X12,Feuil1!$C$1:$BJ$10,5,FALSE) -> 135 | AF12: =T12-HLOOKUP(X12,Feuil1!$C$1:$BJ$10,6,FALSE) -> 125 | AG12: =T12-HLOOKUP(X12,Feuil1!$C$1:$BJ$10,7,FALSE) -> 110 | AH12: =T12-HLOOKUP(X12,Feuil1!$C$1:$BJ$10,8,FALSE) -> 95 | AI12: =T12-HLOOKUP(X12,Feuil1!$C$1:$BJ$10,9,FALSE) -> 80 | AJ12: =T12-HLOOKUP(X12,Feuil1!$C$1:$BJ$10,10,FALSE) -> -760 | AQ12: INTA +
B13: Tirage au sort : | H13: Classement : | L13: =IF(Y13="","",RANK(Y13,$Z$6:$Z$11,0)) -> 2 | Y13: =SUM(U14:U16) -> 674.813176
A14: F | B14: SEST | C14: RAL | D14: 1 | H14: 2003 | I14: 64 | L14: 75 | O14: 75 | P14: 90 | S14: 90 | T14: =IF(I14="","",O14+S14) -> 165 | U14: 217.0054552 | V14: INTA + | W14: 30 | X14: =IF(I14="","",IF(A14="H",IF(OR(H14="SEN",H14<1997),VLOOKUP(I14,Feuil1!$A$11:$G$29,6),IF(AND(H14>1996,H14<2000),VLOOKUP(I14,Feuil1!$A$11:$G$29,5),IF(AND(H14>1999,H14<2002),VLOOKUP(I14,Feuil1!$A$11:$G$29,4),IF(AND(H14>2001,H14<2004),VLOOKUP(I14,Feuil1!$A$11:$G$29,3),VLOOKUP(I14,Feuil1!$A$11:$G$29,2))))),IF(OR(H14="SEN",H14<1997),VLOOKUP(I14,Feuil1!$G$11:$L$25,6),IF(AND(H14>1996,H14<2000),VLOOKUP(I14,Feuil1!$G$11:$L$25,5),IF(AND(H14>1999,H14<2002),VLOOKUP(I14,Feuil1!$G$11:$L$25,4),IF(AND(H14>2001,H14<2004),VLOOKUP(I14,Feuil1!$G$11:$L$25,3),VLOOKUP(I14,Feuil1!$G$11:$L$25,2))))))) -> FC1 69 | AB14: =T14-HLOOKUP(X14,Feuil1!$C$1:$BJ$10,2,FALSE) -> 115 | AC14: =T14-HLOOKUP(X14,Feuil1!$C$1:$BJ$10,3,FALSE) -> 105 | AD14: =T14-HLOOKUP(X14,Feuil1!$C$1:$BJ$10,4,FALSE) -> 95 | AE14: =T14-HLOOKUP(X14,Feuil1!$C$1:$BJ$10,5,FALSE) -> 85 | AF14: =T14-HLOOKUP(X14,Feuil1!$C$1:$BJ$10,6,FALSE) -> 75 | AG14: =T14-HLOOKUP(X14,Feuil1!$C$1:$BJ$10,7,FALSE) -> 60 | AH14: =T14-HLOOKUP(X14,Feuil1!$C$1:$BJ$10,8,FALSE) -> 45 | AI14: =T14-HLOOKUP(X14,Feuil1!$C$1:$BJ$10,9,FALSE) -> 30 | AJ14: =T14-HLOOKUP(X14,Feuil1!$C$1:$BJ$10,10,FALSE) -> -835 | AQ14: INTA +
A15: F | B15: SEST | C15: RAL | D15: 1 | H15: 2000 | I15: 66 | L15: 80 | O15: 80 | P15: 95 | S15: 95 | T15: =IF(I15="","",O15+S15) -> 175 | U15: 225.6585511 | V15: INTA + | W15: 25 | X15: =IF(I15="","",IF(A15="H",IF(OR(H15="SEN",H15<1997),VLOOKUP(I15,Feuil1!$A$11:$G$29,6),IF(AND(H15>1996,H15<2000),VLOOKUP(I15,Feuil1!$A$11:$G$29,5),IF(AND(H15>1999,H15<2002),VLOOKUP(I15,Feuil1!$A$11:$G$29,4),IF(AND(H15>2001,H15<2004),VLOOKUP(I15,Feuil1!$A$11:$G$29,3),VLOOKUP(I15,Feuil1!$A$11:$G$29,2))))),IF(OR(H15="SEN",H15<1997),VLOOKUP(I15,Feuil1!$G$11:$L$25,6),IF(AND(H15>1996,H15<2000),VLOOKUP(I15,Feuil1!$G$11:$L$25,5),IF(AND(H15>1999,H15<2002),VLOOKUP(I15,Feuil1!$G$11:$L$25,4),IF(AND(H15>2001,H15<2004),VLOOKUP(I15,Feuil1!$G$11:$L$25,3),VLOOKUP(I15,Feuil1!$G$11:$L$25,2))))))) -> FC2 69 | AB15: =T15-HLOOKUP(X15,Feuil1!$C$1:$BJ$10,2,FALSE) -> 115 | AC15: =T15-HLOOKUP(X15,Feuil1!$C$1:$BJ$10,3,FALSE) -> 105 | AD15: =T15-HLOOKUP(X15,Feuil1!$C$1:$BJ$10,4,FALSE) -> 95 | AE15: =T15-HLOOKUP(X15,Feuil1!$C$1:$BJ$10,5,FALSE) -> 85 | AF15: =T15-HLOOKUP(X15,Feuil1!$C$1:$BJ$10,6,FALSE) -> 70 | AG15: =T15-HLOOKUP(X15,Feuil1!$C$1:$BJ$10,7,FALSE) -> 55 | AH15: =T15-HLOOKUP(X15,Feuil1!$C$1:$BJ$10,8,FALSE) -> 40 | AI15: =T15-HLOOKUP(X15,Feuil1!$C$1:$BJ$10,9,FALSE) -> 25 | AJ15: =T15-HLOOKUP(X15,Feuil1!$C$1:$BJ$10,10,FALSE) -> -825 | AQ15: INTA +
A16: F | B16: SEST | C16: RAL | D16: 1 | H16: 1997 | I16: 69 | L16: 85 | O16: 85 | P16: 100 | S16: 100 | T16: 185 | U16: 232.1491696 | V16: INTA + | W16: 15 | X16: =IF(I16="","",IF(A16="H",IF(OR(H16="SEN",H16<1997),VLOOKUP(I16,Feuil1!$A$11:$G$29,6),IF(AND(H16>1996,H16<2000),VLOOKUP(I16,Feuil1!$A$11:$G$29,5),IF(AND(H16>1999,H16<2002),VLOOKUP(I16,Feuil1!$A$11:$G$29,4),IF(AND(H16>2001,H16<2004),VLOOKUP(I16,Feuil1!$A$11:$G$29,3),VLOOKUP(I16,Feuil1!$A$11:$G$29,2))))),IF(OR(H16="SEN",H16<1997),VLOOKUP(I16,Feuil1!$G$11:$L$25,6),IF(AND(H16>1996,H16<2000),VLOOKUP(I16,Feuil1!$G$11:$L$25,5),IF(AND(H16>1999,H16<2002),VLOOKUP(I16,Feuil1!$G$11:$L$25,4),IF(AND(H16>2001,H16<2004),VLOOKUP(I16,Feuil1!$G$11:$L$25,3),VLOOKUP(I16,Feuil1!$G$11:$L$25,2))))))) -> FJ69 | AB16: =T16-HLOOKUP(X16,Feuil1!$C$1:$BJ$10,2,FALSE) -> 115 | AC16: =T16-HLOOKUP(X16,Feuil1!$C$1:$BJ$10,3,FALSE) -> 105 | AD16: =T16-HLOOKUP(X16,Feuil1!$C$1:$BJ$10,4,FALSE) -> 95 | AE16: =T16-HLOOKUP(X16,Feuil1!$C$1:$BJ$10,5,FALSE) -> 80 | AF16: =T16-HLOOKUP(X16,Feuil1!$C$1:$BJ$10,6,FALSE) -> 65 | AG16: =T16-HLOOKUP(X16,Feuil1!$C$1:$BJ$10,7,FALSE) -> 50 | AH16: =T16-HLOOKUP(X16,Feuil1!$C$1:$BJ$10,8,FALSE) -> 35 | AI16: =T16-HLOOKUP(X16,Feuil1!$C$1:$BJ$10,9,FALSE) -> 15 | AJ16: =T16-HLOOKUP(X16,Feuil1!$C$1:$BJ$10,10,FALSE) -> -815 | AQ16: INTA +
B17: Tirage au sort : | H17: Classement : | L17: =IF(Y17="","",RANK(Y17,$Z$6:$Z$11,0)) -> 4 | Y17: =SUM(U18:U20) -> 633.8859524
A18: F | B18: SEST | C18: RAL | D18: 1 | H18: 2003 | I18: 75 | L18: 95 | O18: 95 | P18: 110 | S18: 110 | T18: =IF(I18="","",O18+S18) -> 205 | U18: 245.4621577 | V18: INTA + | W18: 60 | X18: =IF(I18="","",IF(A18="H",IF(OR(H18="SEN",H18<1997),VLOOKUP(I18,Feuil1!$A$11:$G$29,6),IF(AND(H18>1996,H18<2000),VLOOKUP(I18,Feuil1!$A$11:$G$29,5),IF(AND(H18>1999,H18<2002),VLOOKUP(I18,Feuil1!$A$11:$G$29,4),IF(AND(H18>2001,H18<2004),VLOOKUP(I18,Feuil1!$A$11:$G$29,3),VLOOKUP(I18,Feuil1!$A$11:$G$29,2))))),IF(OR(H18="SEN",H18<1997),VLOOKUP(I18,Feuil1!$G$11:$L$25,6),IF(AND(H18>1996,H18<2000),VLOOKUP(I18,Feuil1!$G$11:$L$25,5),IF(AND(H18>1999,H18<2002),VLOOKUP(I18,Feuil1!$G$11:$L$25,4),IF(AND(H18>2001,H18<2004),VLOOKUP(I18,Feuil1!$G$11:$L$25,3),VLOOKUP(I18,Feuil1!$G$11:$L$25,2))))))) -> FC1 +69 | AB18: =T18-HLOOKUP(X18,Feuil1!$C$1:$BJ$10,2,FALSE) -> 145 | AC18: =T18-HLOOKUP(X18,Feuil1!$C$1:$BJ$10,3,FALSE) -> 135 | AD18: =T18-HLOOKUP(X18,Feuil1!$C$1:$BJ$10,4,FALSE) -> 125 | AE18: =T18-HLOOKUP(X18,Feuil1!$C$1:$BJ$10,5,FALSE) -> 110 | AF18: =T18-HLOOKUP(X18,Feuil1!$C$1:$BJ$10,6,FALSE) -> 100 | AG18: =T18-HLOOKUP(X18,Feuil1!$C$1:$BJ$10,7,FALSE) -> 90 | AH18: =T18-HLOOKUP(X18,Feuil1!$C$1:$BJ$10,8,FALSE) -> 75 | AI18: =T18-HLOOKUP(X18,Feuil1!$C$1:$BJ$10,9,FALSE) -> 60 | AJ18: =T18-HLOOKUP(X18,Feuil1!$C$1:$BJ$10,10,FALSE) -> -795 | AQ18: INTA +
A19: F | B19: SEST | C19: RAL | D19: 1 | H19: 2004 | I19: 74 | L19: 70 | O19: 70 | P19: 85 | S19: 85 | T19: =IF(I19="","",O19+S19) -> 155 | U19: 186.931219 | X19: =IF(I19="","",IF(A19="H",IF(OR(H19="SEN",H19<1997),VLOOKUP(I19,Feuil1!$A$11:$G$29,6),IF(AND(H19>1996,H19<2000),VLOOKUP(I19,Feuil1!$A$11:$G$29,5),IF(AND(H19>1999,H19<2002),VLOOKUP(I19,Feuil1!$A$11:$G$29,4),IF(AND(H19>2001,H19<2004),VLOOKUP(I19,Feuil1!$A$11:$G$29,3),VLOOKUP(I19,Feuil1!$A$11:$G$29,2))))),IF(OR(H19="SEN",H19<1997),VLOOKUP(I19,Feuil1!$G$11:$L$25,6),IF(AND(H19>1996,H19<2000),VLOOKUP(I19,Feuil1!$G$11:$L$25,5),IF(AND(H19>1999,H19<2002),VLOOKUP(I19,Feuil1!$G$11:$L$25,4),IF(AND(H19>2001,H19<2004),VLOOKUP(I19,Feuil1!$G$11:$L$25,3),VLOOKUP(I19,Feuil1!$G$11:$L$25,2))))))) -> NON | AB19: =T19-HLOOKUP(X19,Feuil1!$C$1:$BJ$10,2,FALSE) ->  | AC19: =T19-HLOOKUP(X19,Feuil1!$C$1:$BJ$10,3,FALSE) ->  | AD19: =T19-HLOOKUP(X19,Feuil1!$C$1:$BJ$10,4,FALSE) ->  | AE19: =T19-HLOOKUP(X19,Feuil1!$C$1:$BJ$10,5,FALSE) ->  | AF19: =T19-HLOOKUP(X19,Feuil1!$C$1:$BJ$10,6,FALSE) ->  | AG19: =T19-HLOOKUP(X19,Feuil1!$C$1:$BJ$10,7,FALSE) ->  | AH19: =T19-HLOOKUP(X19,Feuil1!$C$1:$BJ$10,8,FALSE) ->  | AI19: =T19-HLOOKUP(X19,Feuil1!$C$1:$BJ$10,9,FALSE) ->  | AJ19: =T19-HLOOKUP(X19,Feuil1!$C$1:$BJ$10,10,FALSE) -> 
A20: F | B20: SEST | C20: RAL | D20: 1 | H20: 2000 | I20: 62 | L20: 65 | O20: 65 | P20: 85 | S20: 85 | T20: 150 | U20: 201.4925757 | V20: INTA + | W20: 10 | X20: =IF(I20="","",IF(A20="H",IF(OR(H20="SEN",H20<1997),VLOOKUP(I20,Feuil1!$A$11:$G$29,6),IF(AND(H20>1996,H20<2000),VLOOKUP(I20,Feuil1!$A$11:$G$29,5),IF(AND(H20>1999,H20<2002),VLOOKUP(I20,Feuil1!$A$11:$G$29,4),IF(AND(H20>2001,H20<2004),VLOOKUP(I20,Feuil1!$A$11:$G$29,3),VLOOKUP(I20,Feuil1!$A$11:$G$29,2))))),IF(OR(H20="SEN",H20<1997),VLOOKUP(I20,Feuil1!$G$11:$L$25,6),IF(AND(H20>1996,H20<2000),VLOOKUP(I20,Feuil1!$G$11:$L$25,5),IF(AND(H20>1999,H20<2002),VLOOKUP(I20,Feuil1!$G$11:$L$25,4),IF(AND(H20>2001,H20<2004),VLOOKUP(I20,Feuil1!$G$11:$L$25,3),VLOOKUP(I20,Feuil1!$G$11:$L$25,2))))))) -> FC2 63 | AB20: =T20-HLOOKUP(X20,Feuil1!$C$1:$BJ$10,2,FALSE) -> 95 | AC20: =T20-HLOOKUP(X20,Feuil1!$C$1:$BJ$10,3,FALSE) -> 85 | AD20: =T20-HLOOKUP(X20,Feuil1!$C$1:$BJ$10,4,FALSE) -> 75 | AE20: =T20-HLOOKUP(X20,Feuil1!$C$1:$BJ$10,5,FALSE) -> 65 | AF20: =T20-HLOOKUP(X20,Feuil1!$C$1:$BJ$10,6,FALSE) -> 55 | AG20: =T20-HLOOKUP(X20,Feuil1!$C$1:$BJ$10,7,FALSE) -> 40 | AH20: =T20-HLOOKUP(X20,Feuil1!$C$1:$BJ$10,8,FALSE) -> 25 | AI20: =T20-HLOOKUP(X20,Feuil1!$C$1:$BJ$10,9,FALSE) -> 10 | AJ20: =T20-HLOOKUP(X20,Feuil1!$C$1:$BJ$10,10,FALSE) -> -850 | AQ20: INTA +
B21: Tirage au sort : | H21: Classement : | L21: =IF(Y21="","",RANK(Y21,$Z$6:$Z$11,0)) -> 3 | Y21: =SUM(U22:U24) -> 639.2559922
A22: F | B22: SEST | C22: RAL | D22: 1 | H22: 2003 | I22: 44 | L22: 60 | O22: 60 | P22: 75 | S22: 75 | T22: =IF(I22="","",O22+S22) -> 135 | U22: 239.5635063 | V22: INTA + | W22: 45 | X22: =IF(I22="","",IF(A22="H",IF(OR(H22="SEN",H22<1997),VLOOKUP(I22,Feuil1!$A$11:$G$29,6),IF(AND(H22>1996,H22<2000),VLOOKUP(I22,Feuil1!$A$11:$G$29,5),IF(AND(H22>1999,H22<2002),VLOOKUP(I22,Feuil1!$A$11:$G$29,4),IF(AND(H22>2001,H22<2004),VLOOKUP(I22,Feuil1!$A$11:$G$29,3),VLOOKUP(I22,Feuil1!$A$11:$G$29,2))))),IF(OR(H22="SEN",H22<1997),VLOOKUP(I22,Feuil1!$G$11:$L$25,6),IF(AND(H22>1996,H22<2000),VLOOKUP(I22,Feuil1!$G$11:$L$25,5),IF(AND(H22>1999,H22<2002),VLOOKUP(I22,Feuil1!$G$11:$L$25,4),IF(AND(H22>2001,H22<2004),VLOOKUP(I22,Feuil1!$G$11:$L$25,3),VLOOKUP(I22,Feuil1!$G$11:$L$25,2))))))) -> FC1 44 | AB22: =T22-HLOOKUP(X22,Feuil1!$C$1:$BJ$10,2,FALSE) -> 110 | AC22: =T22-HLOOKUP(X22,Feuil1!$C$1:$BJ$10,3,FALSE) -> 105 | AD22: =T22-HLOOKUP(X22,Feuil1!$C$1:$BJ$10,4,FALSE) -> 95 | AE22: =T22-HLOOKUP(X22,Feuil1!$C$1:$BJ$10,5,FALSE) -> 85 | AF22: =T22-HLOOKUP(X22,Feuil1!$C$1:$BJ$10,6,FALSE) -> 75 | AG22: =T22-HLOOKUP(X22,Feuil1!$C$1:$BJ$10,7,FALSE) -> 65 | AH22: =T22-HLOOKUP(X22,Feuil1!$C$1:$BJ$10,8,FALSE) -> 55 | AI22: =T22-HLOOKUP(X22,Feuil1!$C$1:$BJ$10,9,FALSE) -> 45 | AJ22: =T22-HLOOKUP(X22,Feuil1!$C$1:$BJ$10,10,FALSE) -> -865 | AQ22: INTA +
A23: F | B23: SEST | C23: RAL | D23: 1 | H23: 2002 | I23: 48 | L23: 50 | O23: 50 | P23: 65 | S23: 65 | T23: =IF(I23="","",O23+S23) -> 115 | U23: 188.5109789 | V23: INTA + | W23: 20 | X23: =IF(I23="","",IF(A23="H",IF(OR(H23="SEN",H23<1997),VLOOKUP(I23,Feuil1!$A$11:$G$29,6),IF(AND(H23>1996,H23<2000),VLOOKUP(I23,Feuil1!$A$11:$G$29,5),IF(AND(H23>1999,H23<2002),VLOOKUP(I23,Feuil1!$A$11:$G$29,4),IF(AND(H23>2001,H23<2004),VLOOKUP(I23,Feuil1!$A$11:$G$29,3),VLOOKUP(I23,Feuil1!$A$11:$G$29,2))))),IF(OR(H23="SEN",H23<1997),VLOOKUP(I23,Feuil1!$G$11:$L$25,6),IF(AND(H23>1996,H23<2000),VLOOKUP(I23,Feuil1!$G$11:$L$25,5),IF(AND(H23>1999,H23<2002),VLOOKUP(I23,Feuil1!$G$11:$L$25,4),IF(AND(H23>2001,H23<2004),VLOOKUP(I23,Feuil1!$G$11:$L$25,3),VLOOKUP(I23,Feuil1!$G$11:$L$25,2))))))) -> FC1 48 | AB23: =T23-HLOOKUP(X23,Feuil1!$C$1:$BJ$10,2,FALSE) -> 85 | AC23: =T23-HLOOKUP(X23,Feuil1!$C$1:$BJ$10,3,FALSE) -> 80 | AD23: =T23-HLOOKUP(X23,Feuil1!$C$1:$BJ$10,4,FALSE) -> 70 | AE23: =T23-HLOOKUP(X23,Feuil1!$C$1:$BJ$10,5,FALSE) -> 60 | AF23: =T23-HLOOKUP(X23,Feuil1!$C$1:$BJ$10,6,FALSE) -> 50 | AG23: =T23-HLOOKUP(X23,Feuil1!$C$1:$BJ$10,7,FALSE) -> 40 | AH23: =T23-HLOOKUP(X23,Feuil1!$C$1:$BJ$10,8,FALSE) -> 30 | AI23: =T23-HLOOKUP(X23,Feuil1!$C$1:$BJ$10,9,FALSE) -> 20 | AJ23: =T23-HLOOKUP(X23,Feuil1!$C$1:$BJ$10,10,FALSE) -> -885 | AQ23: INTA +
A24: F | B24: SEST | C24: RAL | D24: 1 | H24: 2001 | I24: 58 | L24: 65 | O24: 65 | P24: 85 | S24: 85 | T24: 150 | U24: 211.181507 | V24: INTA + | W24: 20 | X24: =IF(I24="","",IF(A24="H",IF(OR(H24="SEN",H24<1997),VLOOKUP(I24,Feuil1!$A$11:$G$29,6),IF(AND(H24>1996,H24<2000),VLOOKUP(I24,Feuil1!$A$11:$G$29,5),IF(AND(H24>1999,H24<2002),VLOOKUP(I24,Feuil1!$A$11:$G$29,4),IF(AND(H24>2001,H24<2004),VLOOKUP(I24,Feuil1!$A$11:$G$29,3),VLOOKUP(I24,Feuil1!$A$11:$G$29,2))))),IF(OR(H24="SEN",H24<1997),VLOOKUP(I24,Feuil1!$G$11:$L$25,6),IF(AND(H24>1996,H24<2000),VLOOKUP(I24,Feuil1!$G$11:$L$25,5),IF(AND(H24>1999,H24<2002),VLOOKUP(I24,Feuil1!$G$11:$L$25,4),IF(AND(H24>2001,H24<2004),VLOOKUP(I24,Feuil1!$G$11:$L$25,3),VLOOKUP(I24,Feuil1!$G$11:$L$25,2))))))) -> FC2 58 | AB24: =T24-HLOOKUP(X24,Feuil1!$C$1:$BJ$10,2,FALSE) -> 100 | AC24: =T24-HLOOKUP(X24,Feuil1!$C$1:$BJ$10,3,FALSE) -> 90 | AD24: =T24-HLOOKUP(X24,Feuil1!$C$1:$BJ$10,4,FALSE) -> 80 | AE24: =T24-HLOOKUP(X24,Feuil1!$C$1:$BJ$10,5,FALSE) -> 70 | AF24: =T24-HLOOKUP(X24,Feuil1!$C$1:$BJ$10,6,FALSE) -> 60 | AG24: =T24-HLOOKUP(X24,Feuil1!$C$1:$BJ$10,7,FALSE) -> 50 | AH24: =T24-HLOOKUP(X24,Feuil1!$C$1:$BJ$10,8,FALSE) -> 35 | AI24: =T24-HLOOKUP(X24,Feuil1!$C$1:$BJ$10,9,FALSE) -> 20 | AJ24: =T24-HLOOKUP(X24,Feuil1!$C$1:$BJ$10,10,FALSE) -> -850 | AQ24: INTA +
B25: Tirage au sort : | H25: Classement : | L25: =IF(Y25="","",RANK(Y25,$Z$6:$Z$11,0)) -> 6 | Y25: =SUM(U26:U28) -> 508.3665196
A26: F | B26: SEST | C26: RAL | D26: 1 | H26: 1997 | I26: 53 | L26: 50 | O26: 50 | P26: 70 | S26: 70 | T26: =IF(I26="","",O26+S26) -> 120 | U26: 181.0133043 | V26: INTB + | W26: 0 | X26: =IF(I26="","",IF(A26="H",IF(OR(H26="SEN",H26<1997),VLOOKUP(I26,Feuil1!$A$11:$G$29,6),IF(AND(H26>1996,H26<2000),VLOOKUP(I26,Feuil1!$A$11:$G$29,5),IF(AND(H26>1999,H26<2002),VLOOKUP(I26,Feuil1!$A$11:$G$29,4),IF(AND(H26>2001,H26<2004),VLOOKUP(I26,Feuil1!$A$11:$G$29,3),VLOOKUP(I26,Feuil1!$A$11:$G$29,2))))),IF(OR(H26="SEN",H26<1997),VLOOKUP(I26,Feuil1!$G$11:$L$25,6),IF(AND(H26>1996,H26<2000),VLOOKUP(I26,Feuil1!$G$11:$L$25,5),IF(AND(H26>1999,H26<2002),VLOOKUP(I26,Feuil1!$G$11:$L$25,4),IF(AND(H26>2001,H26<2004),VLOOKUP(I26,Feuil1!$G$11:$L$25,3),VLOOKUP(I26,Feuil1!$G$11:$L$25,2))))))) -> FJ53 | AB26: =T26-HLOOKUP(X26,Feuil1!$C$1:$BJ$10,2,FALSE) -> 65 | AC26: =T26-HLOOKUP(X26,Feuil1!$C$1:$BJ$10,3,FALSE) -> 55 | AD26: =T26-HLOOKUP(X26,Feuil1!$C$1:$BJ$10,4,FALSE) -> 45 | AE26: =T26-HLOOKUP(X26,Feuil1!$C$1:$BJ$10,5,FALSE) -> 35 | AF26: =T26-HLOOKUP(X26,Feuil1!$C$1:$BJ$10,6,FALSE) -> 25 | AG26: =T26-HLOOKUP(X26,Feuil1!$C$1:$BJ$10,7,FALSE) -> 15 | AH26: =T26-HLOOKUP(X26,Feuil1!$C$1:$BJ$10,8,FALSE) -> 0 | AI26: =T26-HLOOKUP(X26,Feuil1!$C$1:$BJ$10,9,FALSE) -> -15 | AJ26: =T26-HLOOKUP(X26,Feuil1!$C$1:$BJ$10,10,FALSE) -> -880 | AQ26: INTB +
A27: F | B27: SEST | C27: RAL | D27: 1 | H27: 1999 | I27: 59 | L27: 50 | O27: 50 | P27: 55 | S27: 55 | T27: =IF(I27="","",O27+S27) -> 105 | U27: 146.0098972 | V27: IRG + | W27: 10 | X27: =IF(I27="","",IF(A27="H",IF(OR(H27="SEN",H27<1997),VLOOKUP(I27,Feuil1!$A$11:$G$29,6),IF(AND(H27>1996,H27<2000),VLOOKUP(I27,Feuil1!$A$11:$G$29,5),IF(AND(H27>1999,H27<2002),VLOOKUP(I27,Feuil1!$A$11:$G$29,4),IF(AND(H27>2001,H27<2004),VLOOKUP(I27,Feuil1!$A$11:$G$29,3),VLOOKUP(I27,Feuil1!$A$11:$G$29,2))))),IF(OR(H27="SEN",H27<1997),VLOOKUP(I27,Feuil1!$G$11:$L$25,6),IF(AND(H27>1996,H27<2000),VLOOKUP(I27,Feuil1!$G$11:$L$25,5),IF(AND(H27>1999,H27<2002),VLOOKUP(I27,Feuil1!$G$11:$L$25,4),IF(AND(H27>2001,H27<2004),VLOOKUP(I27,Feuil1!$G$11:$L$25,3),VLOOKUP(I27,Feuil1!$G$11:$L$25,2))))))) -> FJ63 | AB27: =T27-HLOOKUP(X27,Feuil1!$C$1:$BJ$10,2,FALSE) -> 40 | AC27: =T27-HLOOKUP(X27,Feuil1!$C$1:$BJ$10,3,FALSE) -> 30 | AD27: =T27-HLOOKUP(X27,Feuil1!$C$1:$BJ$10,4,FALSE) -> 20 | AE27: =T27-HLOOKUP(X27,Feuil1!$C$1:$BJ$10,5,FALSE) -> 10 | AF27: =T27-HLOOKUP(X27,Feuil1!$C$1:$BJ$10,6,FALSE) -> -5 | AG27: =T27-HLOOKUP(X27,Feuil1!$C$1:$BJ$10,7,FALSE) -> -20 | AH27: =T27-HLOOKUP(X27,Feuil1!$C$1:$BJ$10,8,FALSE) -> -35 | AI27: =T27-HLOOKUP(X27,Feuil1!$C$1:$BJ$10,9,FALSE) -> -55 | AJ27: =T27-HLOOKUP(X27,Feuil1!$C$1:$BJ$10,10,FALSE) -> -895 | AQ27: IRG +
A28: F | B28: SEST | C28: RAL | D28: 1 | H28: 2005 | I28: 62 | L28: 60 | O28: 60 | P28: 75 | S28: 75 | T28: 135 | U28: 181.3433181 | X28: =IF(I28="","",IF(A28="H",IF(OR(H28="SEN",H28<1997),VLOOKUP(I28,Feuil1!$A$11:$G$29,6),IF(AND(H28>1996,H28<2000),VLOOKUP(I28,Feuil1!$A$11:$G$29,5),IF(AND(H28>1999,H28<2002),VLOOKUP(I28,Feuil1!$A$11:$G$29,4),IF(AND(H28>2001,H28<2004),VLOOKUP(I28,Feuil1!$A$11:$G$29,3),VLOOKUP(I28,Feuil1!$A$11:$G$29,2))))),IF(OR(H28="SEN",H28<1997),VLOOKUP(I28,Feuil1!$G$11:$L$25,6),IF(AND(H28>1996,H28<2000),VLOOKUP(I28,Feuil1!$G$11:$L$25,5),IF(AND(H28>1999,H28<2002),VLOOKUP(I28,Feuil1!$G$11:$L$25,4),IF(AND(H28>2001,H28<2004),VLOOKUP(I28,Feuil1!$G$11:$L$25,3),VLOOKUP(I28,Feuil1!$G$11:$L$25,2))))))) -> NON | AB28: =T28-HLOOKUP(X28,Feuil1!$C$1:$BJ$10,2,FALSE) ->  | AC28: =T28-HLOOKUP(X28,Feuil1!$C$1:$BJ$10,3,FALSE) ->  | AD28: =T28-HLOOKUP(X28,Feuil1!$C$1:$BJ$10,4,FALSE) ->  | AE28: =T28-HLOOKUP(X28,Feuil1!$C$1:$BJ$10,5,FALSE) ->  | AF28: =T28-HLOOKUP(X28,Feuil1!$C$1:$BJ$10,6,FALSE) ->  | AG28: =T28-HLOOKUP(X28,Feuil1!$C$1:$BJ$10,7,FALSE) ->  | AH28: =T28-HLOOKUP(X28,Feuil1!$C$1:$BJ$10,8,FALSE) ->  | AI28: =T28-HLOOKUP(X28,Feuil1!$C$1:$BJ$10,9,FALSE) ->  | AJ28: =T28-HLOOKUP(X28,Feuil1!$C$1:$BJ$10,10,FALSE) -> 
B31: Secrétaire : | J31: 1
I32: ARBITRES : 2 | R32: Signatures :
B33: Contrôleur Technique 1 : | J33: 3
B34: Contrôleur Technique 2 :
B35: Chronométreur : | J35: JURY :
AB530: J77 | AC530: J85 | AD530: J94 | AE530: J105 | AF530: J+105 | AH530: J56 | AI530: J62 | AJ530: J69 | AK530: J77 | AL530: J85 | AM530: J94 | AN530: J105 | AO530: J+105 | AQ530: S56 | AR530: S62 | AS530: S69 | AT530: S77 | AU530: S85 | AV530: S94 | AW530: S105 | AX530: S+105
AB531: 145 | AC531: 160 | AD531: 170 | AE531: 180 | AF531: 190 | AH531: 100 | AI531: 115 | AJ531: 130 | AK531: 145 | AL531: 160 | AM531: 170 | AN531: 180 | AO531: 190 | AQ531: 115 | AR531: 135 | AS531: 150 | AT531: 165 | AU531: 180 | AV531: 190 | AW531: 200 | AX531: 210
AB532: 165 | AC532: 180 | AD532: 190 | AE532: 200 | AF532: 210 | AH532: 115 | AI532: 135 | AJ532: 150 | AK532: 165 | AL532: 180 | AM532: 190 | AN532: 200 | AO532: 210 | AQ532: 130 | AR532: 150 | AS532: 165 | AT532: 185 | AU532: 200 | AV532: 210 | AW532: 220 | AX532: 230
AB533: 185 | AC533: 200 | AD533: 210 | AE533: 220 | AF533: 230 | AH533: 130 | AI533: 150 | AJ533: 165 | AK533: 185 | AL533: 200 | AM533: 210 | AN533: 220 | AO533: 230 | AQ533: 145 | AR533: 165 | AS533: 180 | AT533: 200 | AU533: 220 | AV533: 230 | AW533: 240 | AX533: 250
AB534: 200 | AC534: 220 | AD534: 230 | AE534: 240 | AF534: 250 | AH534: 145 | AI534: 165 | AJ534: 180 | AK534: 200 | AL534: 220 | AM534: 230 | AN534: 240 | AO534: 250 | AQ534: 175 | AR534: 195 | AS534: 215 | AT534: 235 | AU534: 250 | AV534: 260 | AW534: 275 | AX534: 280
AB535: 235 | AC535: 250 | AD535: 260 | AE535: 275 | AF535: 280 | AH535: 175 | AI535: 195 | AJ535: 215 | AK535: 235 | AL535: 250 | AM535: 260 | AN535: 275 | AO535: 280 | AQ535: 210 | AR535: 230 | AS535: 250 | AT535: 270 | AU535: 290 | AV535: 300 | AW535: 310 | AX535: 325
AB536: 270 | AC536: 290 | AD536: 300 | AE536: 310 | AF536: 325 | AH536: 210 | AI536: 230 | AJ536: 250 | AK536: 270 | AL536: 290 | AM536: 300 | AN536: 310 | AO536: 325 | AQ536: 230 | AR536: 255 | AS536: 275 | AT536: 300 | AU536: 315 | AV536: 335 | AW536: 345 | AX536: 355
AB537: 320 | AC537: 335 | AD537: 355 | AE537: 370 | AF537: 380 | AH537: 245 | AI537: 270 | AJ537: 295 | AK537: 320 | AL537: 335 | AM537: 355 | AN537: 370 | AO537: 380 | AQ537: 245 | AR537: 270 | AS537: 295 | AT537: 320 | AU537: 335 | AV537: 355 | AW537: 370 | AX537: 380

Sheet HOMMES
C1: COUPE DE FRANCE DES CLUBS JEUNES 2017 | O1: TOUR : | Y1: HOMMES CA ou JU
G2: LIEU : | L2: REGION : | T2: Date :
A4: SEXE | B4: ZONE | C4: REG. | D4: CL. | E4: LICENCE | F4: NOMS | G4: Prénoms | H4: AN | I4: POIDS | J4: CLUB | K4: NAT | L4: 1 | M4: 2 | N4: 3 | O4: ARR | P4: 1 | Q4: 2 | R4: 3 | S4: EP-J | T4: Total | U4: IWF | V4: SERIE | X4: Catég | AB4: DEB | AC4: DEP + | AD4: REG + | AE4: IRG + | AF4: FED + | AG4: NAT + | AH4: INTB + | AI4: INTA + | AJ4: OLY +
B5: Tirage au sort : | H5: Classement : | L5: =IF(Y5="","",RANK(Y5,$Z$6:$Z$11,0)) -> 3 | Y5: =SUM(U6:U8) -> 703.1434016 | AB5: =T5-HLOOKUP(X5,Feuil1!$C$1:$BJ$10,2,FALSE) ->  | AC5: =T5-HLOOKUP(X5,Feuil1!$C$1:$BJ$10,3,FALSE) ->  | AD5: =T5-HLOOKUP(X5,Feuil1!$C$1:$BJ$10,4,FALSE) ->  | AE5: =T5-HLOOKUP(X5,Feuil1!$C$1:$BJ$10,5,FALSE) ->  | AF5: =T5-HLOOKUP(X5,Feuil1!$C$1:$BJ$10,6,FALSE) ->  | AG5: =T5-HLOOKUP(X5,Feuil1!$C$1:$BJ$10,7,FALSE) ->  | AH5: =T5-HLOOKUP(X5,Feuil1!$C$1:$BJ$10,8,FALSE) ->  | AI5: =T5-HLOOKUP(X5,Feuil1!$C$1:$BJ$10,9,FALSE) ->  | AJ5: =T5-HLOOKUP(X5,Feuil1!$C$1:$BJ$10,10,FALSE) ->  | AQ5: =IF(AJ5>=0,$AJ$4,IF(AI5>=0,$AI$4,IF(AH5>=0,$AH$4,IF(AG5>=0,$AG$4,IF(AF5>=0,$AF$4,IF(AE5>=0,$AE$4,IF(AD5>=0,$AD$4,IF(AC5>=0,$AC$4,$AB$4)))))))) -> 
A6: H | B6: SEST | C6: RAL | D6: 1 | H6: 1997 | I6: 75 | L6: -90 | M6: -90 | N6: -90 | O6: =IF(H6="","",IF(MAXA(L6:N6)<=0,0,MAXA(L6:N6))) -> 0 | P6: 100 | S6: =IF(H6="","",IF(MAXA(P6:R6)<=0,0,MAXA(P6:R6))) -> 100 | T6: =IF(I6="","",O6+S6) -> 100 | U6: =IF(I6="","",IF(A6="H",10^(0.794358141*LOG(I6/174.393)^2)*T6,IF(A6="F",10^(0.89726074*LOG(I6/148.026)^2)*T6,""))) -> 127.8442548 | V6: =IF(H6="","",AQ6) -> DEB | W6: =IF(AJ6>=0,AJ6,IF(AI6>=0,AI6,IF(AH6>=0,AH6,IF(AG6>=0,AG6,IF(AF6>=0,AF6,IF(AE6>=0,AE6,IF(AD6>=0,AD6,IF(AC6>=0,AC6,AB6)))))))) -> -30 | X6: =IF(I6="","",IF(A6="H",IF(OR(H6="SEN",H6<1997),VLOOKUP(I6,Feuil1!$A$11:$G$29,6),IF(AND(H6>1996,H6<2000),VLOOKUP(I6,Feuil1!$A$11:$G$29,5),IF(AND(H6>1999,H6<2002),VLOOKUP(I6,Feuil1!$A$11:$G$29,4),IF(AND(H6>2001,H6<2004),VLOOKUP(I6,Feuil1!$A$11:$G$29,3),VLOOKUP(I6,Feuil1!$A$11:$G$29,2))))),IF(OR(H6="SEN",H6<1997),VLOOKUP(I6,Feuil1!$G$11:$L$25,6),IF(AND(H6>1996,H6<2000),VLOOKUP(I6,Feuil1!$G$11:$L$25,5),IF(AND(H6>1999,H6<2002),VLOOKUP(I6,Feuil1!$G$11:$L$25,4),IF(AND(H6>2001,H6<2004),VLOOKUP(I6,Feuil1!$G$11:$L$25,3),VLOOKUP(I6,Feuil1!$G$11:$L$25,2))))))) -> J77 | Z6: =Y5 -> 703.1434016 | AB6: =T6-HLOOKUP(X6,Feuil1!$C$1:$BJ$10,2,FALSE) -> -30 | AC6: =T6-HLOOKUP(X6,Feuil1!$C$1:$BJ$10,3,FALSE) -> -50 | AD6: =T6-HLOOKUP(X6,Feuil1!$C$1:$BJ$10,4,FALSE) -> -70 | AE6: =T6-HLOOKUP(X6,Feuil1!$C$1:$BJ$10,5,FALSE) -> -90 | AF6: =T6-HLOOKUP(X6,Feuil1!$C$1:$BJ$10,6,FALSE) -> -110 | AG6: =T6-HLOOKUP(X6,Feuil1!$C$1:$BJ$10,7,FALSE) -> -140 | AH6: =T6-HLOOKUP(X6,Feuil1!$C$1:$BJ$10,8,FALSE) -> -160 | AI6: =T6-HLOOKUP(X6,Feuil1!$C$1:$BJ$10,9,FALSE) -> -185 | AJ6: =T6-HLOOKUP(X6,Feuil1!$C$1:$BJ$10,10,FALSE) -> -9900 | AQ6: =IF(AJ6>=0,$AJ$4,IF(AI6>=0,$AI$4,IF(AH6>=0,$AH$4,IF(AG6>=0,$AG$4,IF(AF6>=0,$AF$4,IF(AE6>=0,$AE$4,IF(AD6>=0,$AD$4,IF(AC6>=0,$AC$4,$AB$4)))))))) -> DEB
A7: H | B7: SEST | C7: RAL | D7: 1 | H7: 1998 | I7: 75 | L7: 100 | O7: 100 | P7: 110 | S7: 110 | T7: =IF(I7="","",O7+S7) -> 210 | U7: 268.4729352 | V7: FED + | W7: 0 | X7: =IF(I7="","",IF(A7="H",IF(OR(H7="SEN",H7<1997),VLOOKUP(I7,Feuil1!$A$11:$G$29,6),IF(AND(H7>1996,H7<2000),VLOOKUP(I7,Feuil1!$A$11:$G$29,5),IF(AND(H7>1999,H7<2002),VLOOKUP(I7,Feuil1!$A$11:$G$29,4),IF(AND(H7>2001,H7<2004),VLOOKUP(I7,Feuil1!$A$11:$G$29,3),VLOOKUP(I7,Feuil1!$A$11:$G$29,2))))),IF(OR(H7="SEN",H7<1997),VLOOKUP(I7,Feuil1!$G$11:$L$25,6),IF(AND(H7>1996,H7<2000),VLOOKUP(I7,Feuil1!$G$11:$L$25,5),IF(AND(H7>1999,H7<2002),VLOOKUP(I7,Feuil1!$G$11:$L$25,4),IF(AND(H7>2001,H7<2004),VLOOKUP(I7,Feuil1!$G$11:$L$25,3),VLOOKUP(I7,Feuil1!$G$11:$L$25,2))))))) -> J77 | Z7: =Y9 -> 939.6552731 | AB7: =T7-HLOOKUP(X7,Feuil1!$C$1:$BJ$10,2,FALSE) -> 80 | AC7: =T7-HLOOKUP(X7,Feuil1!$C$1:$BJ$10,3,FALSE) -> 60 | AD7: =T7-HLOOKUP(X7,Feuil1!$C$1:$BJ$10,4,FALSE) -> 40 | AE7: =T7-HLOOKUP(X7,Feuil1!$C$1:$BJ$10,5,FALSE) -> 20 | AF7: =T7-HLOOKUP(X7,Feuil1!$C$1:$BJ$10,6,FALSE) -> 0 | AG7: =T7-HLOOKUP(X7,Feuil1!$C$1:$BJ$10,7,FALSE) -> -30 | AH7: =T7-HLOOKUP(X7,Feuil1!$C$1:$BJ$10,8,FALSE) -> -50 | AI7: =T7-HLOOKUP(X7,Feuil1!$C$1:$BJ$10,9,FALSE) -> -75 | AJ7: =T7-HLOOKUP(X7,Feuil1!$C$1:$BJ$10,10,FALSE) -> -9790 | AQ7: FED +
A8: H | B8: SEST | C8: RAL | D8: 1 | H8: 1999 | I8: 75 | L8: 110 | O8: 110 | P8: 130 | S8: 130 | T8: 240 | U8: 306.8262116 | V8: NAT + | W8: 0 | X8: =IF(I8="","",IF(A8="H",IF(OR(H8="SEN",H8<1997),VLOOKUP(I8,Feuil1!$A$11:$G$29,6),IF(AND(H8>1996,H8<2000),VLOOKUP(I8,Feuil1!$A$11:$G$29,5),IF(AND(H8>1999,H8<2002),VLOOKUP(I8,Feuil1!$A$11:$G$29,4),IF(AND(H8>2001,H8<2004),VLOOKUP(I8,Feuil1!$A$11:$G$29,3),VLOOKUP(I8,Feuil1!$A$11:$G$29,2))))),IF(OR(H8="SEN",H8<1997),VLOOKUP(I8,Feuil1!$G$11:$L$25,6),IF(AND(H8>1996,H8<2000),VLOOKUP(I8,Feuil1!$G$11:$L$25,5),IF(AND(H8>1999,H8<2002),VLOOKUP(I8,Feuil1!$G$11:$L$25,4),IF(AND(H8>2001,H8<2004),VLOOKUP(I8,Feuil1!$G$11:$L$25,3),VLOOKUP(I8,Feuil1!$G$11:$L$25,2))))))) -> J77 | Z8: =Y13 -> 830.9876565 | AB8: =T8-HLOOKUP(X8,Feuil1!$C$1:$BJ$10,2,FALSE) -> 110 | AC8: =T8-HLOOKUP(X8,Feuil1!$C$1:$BJ$10,3,FALSE) -> 90 | AD8: =T8-HLOOKUP(X8,Feuil1!$C$1:$BJ$10,4,FALSE) -> 70 | AE8: =T8-HLOOKUP(X8,Feuil1!$C$1:$BJ$10,5,FALSE) -> 50 | AF8: =T8-HLOOKUP(X8,Feuil1!$C$1:$BJ$10,6,FALSE) -> 30 | AG8: =T8-HLOOKUP(X8,Feuil1!$C$1:$BJ$10,7,FALSE) -> 0 | AH8: =T8-HLOOKUP(X8,Feuil1!$C$1:$BJ$10,8,FALSE) -> -20 | AI8: =T8-HLOOKUP(X8,Feuil1!$C$1:$BJ$10,9,FALSE) -> -45 | AJ8: =T8-HLOOKUP(X8,Feuil1!$C$1:$BJ$10,10,FALSE) -> -9760 | AQ8: NAT +
B9: Tirage au sort : | H9: Classement : | L9: =IF(Y9="","",RANK(Y9,$Z$6:$Z$11,0)) -> 1 | Y9: =SUM(U10:U12) -> 939.6552731 | Z9: =Y17 -> 686.0823723
A10: H | B10: SEST | C10: RAL | D10: 1 | H10: 1997 | I10: 75 | L10: 120 | O10: 120 | P10: 145 | S10: 145 | T10: =IF(I10="","",O10+S10) -> 265 | U10: 338.7872753 | V10: INTB + | W10: 5 | X10: =IF(I10="","",IF(A10="H",IF(OR(H10="SEN",H10<1997),VLOOKUP(I10,Feuil1!$A$11:$G$29,6),IF(AND(H10>1996,H10<2000),VLOOKUP(I10,Feuil1!$A$11:$G$29,5),IF(AND(H10>1999,H10<2002),VLOOKUP(I10,Feuil1!$A$11:$G$29,4),IF(AND(H10>2001,H10<2004),VLOOKUP(I10,Feuil1!$A$11:$G$29,3),VLOOKUP(I10,Feuil1!$A$11:$G$29,2))))),IF(OR(H10="SEN",H10<1997),VLOOKUP(I10,Feuil1!$G$11:$L$25,6),IF(AND(H10>1996,H10<2000),VLOOKUP(I10,Feuil1!$G$11:$L$25,5),IF(AND(H10>1999,H10<2002),VLOOKUP(I10,Feuil1!$G$11:$L$25,4),IF(AND(H10>2001,H10<2004),VLOOKUP(I10,Feuil1!$G$11:$L$25,3),VLOOKUP(I10,Feuil1!$G$11:$L$25,2))))))) -> J77 | Z10: =Y21 -> 659.1771812 | AB10: =T10-HLOOKUP(X10,Feuil1!$C$1:$BJ$10,2,FALSE) -> 135 | AC10: =T10-HLOOKUP(X10,Feuil1!$C$1:$BJ$10,3,FALSE) -> 115 | AD10: =T10-HLOOKUP(X10,Feuil1!$C$1:$BJ$10,4,FALSE) -> 95 | AE10: =T10-HLOOKUP(X10,Feuil1!$C$1:$BJ$10,5,FALSE) -> 75 | AF10: =T10-HLOOKUP(X10,Feuil1!$C$1:$BJ$10,6,FALSE) -> 55 | AG10: =T10-HLOOKUP(X10,Feuil1!$C$1:$BJ$10,7,FALSE) -> 25 | AH10: =T10-HLOOKUP(X10,Feuil1!$C$1:$BJ$10,8,FALSE) -> 5 | AI10: =T10-HLOOKUP(X10,Feuil1!$C$1:$BJ$10,9,FALSE) -> -20 | AJ10: =T10-HLOOKUP(X10,Feuil1!$C$1:$BJ$10,10,FALSE) -> -9735 | AQ10: INTB +
A11: H | B11: SEST | C11: RAL | D11: 1 | H11: 1998 | I11: 75 | L11: 100 | O11: 100 | P11: 120 | S11: 120 | T11: =IF(I11="","",O11+S11) -> 220 | U11: 281.2573607 | V11: FED + | W11: 10 | X11: =IF(I11="","",IF(A11="H",IF(OR(H11="SEN",H11<1997),VLOOKUP(I11,Feuil1!$A$11:$G$29,6),IF(AND(H11>1996,H11<2000),VLOOKUP(I11,Feuil1!$A$11:$G$29,5),IF(AND(H11>1999,H11<2002),VLOOKUP(I11,Feuil1!$A$11:$G$29,4),IF(AND(H11>2001,H11<2004),VLOOKUP(I11,Feuil1!$A$11:$G$29,3),VLOOKUP(I11,Feuil1!$A$11:$G$29,2))))),IF(OR(H11="SEN",H11<1997),VLOOKUP(I11,Feuil1!$G$11:$L$25,6),IF(AND(H11>1996,H11<2000),VLOOKUP(I11,Feuil1!$G$11:$L$25,5),IF(AND(H11>1999,H11<2002),VLOOKUP(I11,Feuil1!$G$11:$L$25,4),IF(AND(H11>2001,H11<2004),VLOOKUP(I11,Feuil1!$G$11:$L$25,3),VLOOKUP(I11,Feuil1!$G$11:$L$25,2))))))) -> J77 | Z11: =Y25 -> 484.2934393 | AB11: =T11-HLOOKUP(X11,Feuil1!$C$1:$BJ$10,2,FALSE) -> 90 | AC11: =T11-HLOOKUP(X11,Feuil1!$C$1:$BJ$10,3,FALSE) -> 70 | AD11: =T11-HLOOKUP(X11,Feuil1!$C$1:$BJ$10,4,FALSE) -> 50 | AE11: =T11-HLOOKUP(X11,Feuil1!$C$1:$BJ$10,5,FALSE) -> 30 | AF11: =T11-HLOOKUP(X11,Feuil1!$C$1:$BJ$10,6,FALSE) -> 10 | AG11: =T11-HLOOKUP(X11,Feuil1!$C$1:$BJ$10,7,FALSE) -> -20 | AH11: =T11-HLOOKUP(X11,Feuil1!$C$1:$BJ$10,8,FALSE) -> -40 | AI11: =T11-HLOOKUP(X11,Feuil1!$C$1:$BJ$10,9,FALSE) -> -65 | AJ11: =T11-HLOOKUP(X11,Feuil1!$C$1:$BJ$10,10,FALSE) -> -9780 | AQ11: FED +
A12: H | B12: SEST | C12: RAL | D12: 1 | H12: 1999 | I12: 75 | L12: 115 | O12: 115 | P12: 135 | S12: 135 | T12: 250 | U12: 319.6106371 | V12: NAT + | W12: 10 | X12: =IF(I12="","",IF(A12="H",IF(OR(H12="SEN",H12<1997),VLOOKUP(I12,Feuil1!$A$11:$G$29,6),IF(AND(H12>1996,H12<2000),VLOOKUP(I12,Feuil1!$A$11:$G$29,5),IF(AND(H12>1999,H12<2002),VLOOKUP(I12,Feuil1!$A$11:$G$29,4),IF(AND(H12>2001,H12<2004),VLOOKUP(I12,Feuil1!$A$11:$G$29,3),VLOOKUP(I12,Feuil1!$A$11:$G$29,2))))),IF(OR(H12="SEN",H12<1997),VLOOKUP(I12,Feuil1!$G$11:$L$25,6),IF(AND(H12>1996,H12<2000),VLOOKUP(I12,Feuil1!$G$11:$L$25,5),IF(AND(H12>1999,H12<2002),VLOOKUP(I12,Feuil1!$G$11:$L$25,4),IF(AND(H12>2001,H12<2004),VLOOKUP(I12,Feuil1!$G$11:$L$25,3),VLOOKUP(I12,Feuil1!$G$11:$L$25,2))))))) -> J77 | AB12: =T12-HLOOKUP(X12,Feuil1!$C$1:$BJ$10,2,FALSE) -> 120 | AC12: =T12-HLOOKUP(X12,Feuil1!$C$1:$BJ$10,3,FALSE) -> 100 | AD12: =T12-HLOOKUP(X12,Feuil1!$C$1:$BJ$10,4,FALSE) -> 80 | AE12: =T12-HLOOKUP(X12,Feuil1!$C$1:$BJ$10,5,FALSE) -> 60 | AF12: =T12-HLOOKUP(X12,Feuil1!$C$1:$BJ$10,6,FALSE) -> 40 | AG12: =T12-HLOOKUP(X12,Feuil1!$C$1:$BJ$10,7,FALSE) -> 10 | AH12: =T12-HLOOKUP(X12,Feuil1!$C$1:$BJ$10,8,FALSE) -> -10 | AI12: =T12-HLOOKUP(X12,Feuil1!$C$1:$BJ$10,9,FALSE) -> -35 | AJ12: =T12-HLOOKUP(X12,Feuil1!$C$1:$BJ$10,10,FALSE) -> -9750 | AQ12: NAT +
B13: Tirage au sort : | H13: Classement : | L13: =IF(Y13="","",RANK(Y13,$Z$6:$Z$11,0)) -> 2 | Y13: =SUM(U14:U16) -> 830.9876565
A14: H | B14: SEST | C14: RAL | D14: 1 | H14: 2003 | I14: 75 | L14: 100 | O14: 100 | P14: 110 | S14: 110 | T14: =IF(I14="","",O14+S14) -> 210 | U14: 268.4729352 | V14: INTB + | W14: 10 | X14: =IF(I14="","",IF(A14="H",IF(OR(H14="SEN",H14<1997),VLOOKUP(I14,Feuil1!$A$11:$G$29,6),IF(AND(H14>1996,H14<2000),VLOOKUP(I14,Feuil1!$A$11:$G$29,5),IF(AND(H14>1999,H14<2002),VLOOKUP(I14,Feuil1!$A$11:$G$29,4),IF(AND(H14>2001,H14<2004),VLOOKUP(I14,Feuil1!$A$11:$G$29,3),VLOOKUP(I14,Feuil1!$A$11:$G$29,2))))),IF(OR(H14="SEN",H14<1997),VLOOKUP(I14,Feuil1!$G$11:$L$25,6),IF(AND(H14>1996,H14<2000),VLOOKUP(I14,Feuil1!$G$11:$L$25,5),IF(AND(H14>1999,H14<2002),VLOOKUP(I14,Feuil1!$G$11:$L$25,4),IF(AND(H14>2001,H14<2004),VLOOKUP(I14,Feuil1!$G$11:$L$25,3),VLOOKUP(I14,Feuil1!$G$11:$L$25,2))))))) -> C1 77 | AB14: =T14-HLOOKUP(X14,Feuil1!$C$1:$BJ$10,2,FALSE) -> 120 | AC14: =T14-HLOOKUP(X14,Feuil1!$C$1:$BJ$10,3,FALSE) -> 100 | AD14: =T14-HLOOKUP(X14,Feuil1!$C$1:$BJ$10,4,FALSE) -> 80 | AE14: =T14-HLOOKUP(X14,Feuil1!$C$1:$BJ$10,5,FALSE) -> 60 | AF14: =T14-HLOOKUP(X14,Feuil1!$C$1:$BJ$10,6,FALSE) -> 40 | AG14: =T14-HLOOKUP(X14,Feuil1!$C$1:$BJ$10,7,FALSE) -> 25 | AH14: =T14-HLOOKUP(X14,Feuil1!$C$1:$BJ$10,8,FALSE) -> 10 | AI14: =T14-HLOOKUP(X14,Feuil1!$C$1:$BJ$10,9,FALSE) -> -10 | AJ14: =T14-HLOOKUP(X14,Feuil1!$C$1:$BJ$10,10,FALSE) -> -790 | AQ14: INTB +
A15: H | B15: SEST | C15: RAL | D15: 1 | H15: 2000 | I15: 75 | L15: 100 | O15: 100 | P15: 120 | S15: 120 | T15: =IF(I15="","",O15+S15) -> 220 | U15: 281.2573607 | V15: INTB + | W15: 0 | X15: =IF(I15="","",IF(A15="H",IF(OR(H15="SEN",H15<1997),VLOOKUP(I15,Feuil1!$A$11:$G$29,6),IF(AND(H15>1996,H15<2000),VLOOKUP(I15,Feuil1!$A$11:$G$29,5),IF(AND(H15>1999,H15<2002),VLOOKUP(I15,Feuil1!$A$11:$G$29,4),IF(AND(H15>2001,H15<2004),VLOOKUP(I15,Feuil1!$A$11:$G$29,3),VLOOKUP(I15,Feuil1!$A$11:$G$29,2))))),IF(OR(H15="SEN",H15<1997),VLOOKUP(I15,Feuil1!$G$11:$L$25,6),IF(AND(H15>1996,H15<2000),VLOOKUP(I15,Feuil1!$G$11:$L$25,5),IF(AND(H15>1999,H15<2002),VLOOKUP(I15,Feuil1!$G$11:$L$25,4),IF(AND(H15>2001,H15<2004),VLOOKUP(I15,Feuil1!$G$11:$L$25,3),VLOOKUP(I15,Feuil1!$G$11:$L$25,2))))))) -> C2 77 | AB15: =T15-HLOOKUP(X15,Feuil1!$C$1:$BJ$10,2,FALSE) -> 110 | AC15: =T15-HLOOKUP(X15,Feuil1!$C$1:$BJ$10,3,FALSE) -> 90 | AD15: =T15-HLOOKUP(X15,Feuil1!$C$1:$BJ$10,4,FALSE) -> 70 | AE15: =T15-HLOOKUP(X15,Feuil1!$C$1:$BJ$10,5,FALSE) -> 50 | AF15: =T15-HLOOKUP(X15,Feuil1!$C$1:$BJ$10,6,FALSE) -> 35 | AG15: =T15-HLOOKUP(X15,Feuil1!$C$1:$BJ$10,7,FALSE) -> 20 | AH15: =T15-HLOOKUP(X15,Feuil1!$C$1:$BJ$10,8,FALSE) -> 0 | AI15: =T15-HLOOKUP(X15,Feuil1!$C$1:$BJ$10,9,FALSE) -> -30 | AJ15: =T15-HLOOKUP(X15,Feuil1!$C$1:$BJ$10,10,FALSE) -> -780 | AQ15: INTB +
A16: H | B16: SEST | C16: RAL | D16: 1 | H16: 1997 | I16: 75 | L16: 120 | O16: 120 | P16: 100 | S16: 100 | T16: 220 | U16: 281.2573607 | V16: FED + | W16: 10 | X16: =IF(I16="","",IF(A16="H",IF(OR(H16="SEN",H16<1997),VLOOKUP(I16,Feuil1!$A$11:$G$29,6),IF(AND(H16>1996,H16<2000),VLOOKUP(I16,Feuil1!$A$11:$G$29,5),IF(AND(H16>1999,H16<2002),VLOOKUP(I16,Feuil1!$A$11:$G$29,4),IF(AND(H16>2001,H16<2004),VLOOKUP(I16,Feuil1!$A$11:$G$29,3),VLOOKUP(I16,Feuil1!$A$11:$G$29,2))))),IF(OR(H16="SEN",H16<1997),VLOOKUP(I16,Feuil1!$G$11:$L$25,6),IF(AND(H16>1996,H16<2000),VLOOKUP(I16,Feuil1!$G$11:$L$25,5),IF(AND(H16>1999,H16<2002),VLOOKUP(I16,Feuil1!$G$11:$L$25,4),IF(AND(H16>2001,H16<2004),VLOOKUP(I16,Feuil1!$G$11:$L$25,3),VLOOKUP(I16,Feuil1!$G$11:$L$25,2))))))) -> J77 | AB16: =T16-HLOOKUP(X16,Feuil1!$C$1:$BJ$10,2,FALSE) -> 90 | AC16: =T16-HLOOKUP(X16,Feuil1!$C$1:$BJ$10,3,FALSE) -> 70 | AD16: =T16-HLOOKUP(X16,Feuil1!$C$1:$BJ$10,4,FALSE) -> 50 | AE16: =T16-HLOOKUP(X16,Feuil1!$C$1:$BJ$10,5,FALSE) -> 30 | AF16: =T16-HLOOKUP(X16,Feuil1!$C$1:$BJ$10,6,FALSE) -> 10 | AG16: =T16-HLOOKUP(X16,Feuil1!$C$1:$BJ$10,7,FALSE) -> -20 | AH16: =T16-HLOOKUP(X16,Feuil1!$C$1:$BJ$10,8,FALSE) -> -40 | AI16: =T16-HLOOKUP(X16,Feuil1!$C$1:$BJ$10,9,FALSE) -> -65 | AJ16: =T16-HLOOKUP(X16,Feuil1!$C$1:$BJ$10,10,FALSE) -> -9780 | AQ16: FED +
B17: Tirage au sort : | H17: Classement : | L17: =IF(Y17="","",RANK(Y17,$Z$6:$Z$11,0)) -> 4 | Y17: =SUM(U18:U20) -> 686.0823723
A18: H | B18: SEST | C18: RAL | D18: 1 | H18: 2003 | I18: 69 | L18: 95 | O18: 95 | P18: 110 | S18: 110 | T18: =IF(I18="","",O18+S18) -> 205 | U18: 275.7782085 | V18: INTB + | W18: 15 | X18: =IF(I18="","",IF(A18="H",IF(OR(H18="SEN",H18<1997),VLOOKUP(I18,Feuil1!$A$11:$G$29,6),IF(AND(H18>1996,H18<2000),VLOOKUP(I18,Feuil1!$A$11:$G$29,5),IF(AND(H18>1999,H18<2002),VLOOKUP(I18,Feuil1!$A$11:$G$29,4),IF(AND(H18>2001,H18<2004),VLOOKUP(I18,Feuil1!$A$11:$G$29,3),VLOOKUP(I18,Feuil1!$A$11:$G$29,2))))),IF(OR(H18="SEN",H18<1997),VLOOKUP(I18,Feuil1!$G$11:$L$25,6),IF(AND(H18>1996,H18<2000),VLOOKUP(I18,Feuil1!$G$11:$L$25,5),IF(AND(H18>1999,H18<2002),VLOOKUP(I18,Feuil1!$G$11:$L$25,4),IF(AND(H18>2001,H18<2004),VLOOKUP(I18,Feuil1!$G$11:$L$25,3),VLOOKUP(I18,Feuil1!$G$11:$L$25,2))))))) -> C1 69 | AB18: =T18-HLOOKUP(X18,Feuil1!$C$1:$BJ$10,2,FALSE) -> 120 | AC18: =T18-HLOOKUP(X18,Feuil1!$C$1:$BJ$10,3,FALSE) -> 100 | AD18: =T18-HLOOKUP(X18,Feuil1!$C$1:$BJ$10,4,FALSE) -> 90 | AE18: =T18-HLOOKUP(X18,Feuil1!$C$1:$BJ$10,5,FALSE) -> 75 | AF18: =T18-HLOOKUP(X18,Feuil1!$C$1:$BJ$10,6,FALSE) -> 55 | AG18: =T18-HLOOKUP(X18,Feuil1!$C$1:$BJ$10,7,FALSE) -> 35 | AH18: =T18-HLOOKUP(X18,Feuil1!$C$1:$BJ$10,8,FALSE) -> 15 | AI18: =T18-HLOOKUP(X18,Feuil1!$C$1:$BJ$10,9,FALSE) -> -5 | AJ18: =T18-HLOOKUP(X18,Feuil1!$C$1:$BJ$10,10,FALSE) -> -795 | AQ18: INTB +
A19: H | B19: SEST | C19: RAL | D19: 1 | H19: 2004 | I19: 69 | L19: 70 | O19: 70 | P19: 85 | S19: 85 | T19: =IF(I19="","",O19+S19) -> 155 | U19: 208.5152308 | X19: =IF(I19="","",IF(A19="H",IF(OR(H19="SEN",H19<1997),VLOOKUP(I19,Feuil1!$A$11:$G$29,6),IF(AND(H19>1996,H19<2000),VLOOKUP(I19,Feuil1!$A$11:$G$29,5),IF(AND(H19>1999,H19<2002),VLOOKUP(I19,Feuil1!$A$11:$G$29,4),IF(AND(H19>2001,H19<2004),VLOOKUP(I19,Feuil1!$A$11:$G$29,3),VLOOKUP(I19,Feuil1!$A$11:$G$29,2))))),IF(OR(H19="SEN",H19<1997),VLOOKUP(I19,Feuil1!$G$11:$L$25,6),IF(AND(H19>1996,H19<2000),VLOOKUP(I19,Feuil1!$G$11:$L$25,5),IF(AND(H19>1999,H19<2002),VLOOKUP(I19,Feuil1!$G$11:$L$25,4),IF(AND(H19>2001,H19<2004),VLOOKUP(I19,Feuil1!$G$11:$L$25,3),VLOOKUP(I19,Feuil1!$G$11:$L$25,2))))))) -> NON | AB19: =T19-HLOOKUP(X19,Feuil1!$C$1:$BJ$10,2,FALSE) ->  | AC19: =T19-HLOOKUP(X19,Feuil1!$C$1:$BJ$10,3,FALSE) ->  | AD19: =T19-HLOOKUP(X19,Feuil1!$C$1:$BJ$10,4,FALSE) ->  | AE19: =T19-HLOOKUP(X19,Feuil1!$C$1:$BJ$10,5,FALSE) ->  | AF19: =T19-HLOOKUP(X19,Feuil1!$C$1:$BJ$10,6,FALSE) ->  | AG19: =T19-HLOOKUP(X19,Feuil1!$C$1:$BJ$10,7,FALSE) ->  | AH19: =T19-HLOOKUP(X19,Feuil1!$C$1:$BJ$10,8,FALSE) ->  | AI19: =T19-HLOOKUP(X19,Feuil1!$C$1:$BJ$10,9,FALSE) ->  | AJ19: =T19-HLOOKUP(X19,Feuil1!$C$1:$BJ$10,10,FALSE) -> 
A20: H | B20: SEST | C20: RAL | D20: 1 | H20: 2000 | I20: 69 | L20: 65 | O20: 65 | P20: 85 | S20: 85 | T20: 150 | U20: 201.788933 | V20: IRG + | W20: 0 | X20: =IF(I20="","",IF(A20="H",IF(OR(H20="SEN",H20<1997),VLOOKUP(I20,Feuil1!$A$11:$G$29,6),IF(AND(H20>1996,H20<2000),VLOOKUP(I20,Feuil1!$A$11:$G$29,5),IF(AND(H20>1999,H20<2002),VLOOKUP(I20,Feuil1!$A$11:$G$29,4),IF(AND(H20>2001,H20<2004),VLOOKUP(I20,Feuil1!$A$11:$G$29,3),VLOOKUP(I20,Feuil1!$A$11:$G$29,2))))),IF(OR(H20="SEN",H20<1997),VLOOKUP(I20,Feuil1!$G$11:$L$25,6),IF(AND(H20>1996,H20<2000),VLOOKUP(I20,Feuil1!$G$11:$L$25,5),IF(AND(H20>1999,H20<2002),VLOOKUP(I20,Feuil1!$G$11:$L$25,4),IF(AND(H20>2001,H20<2004),VLOOKUP(I20,Feuil1!$G$11:$L$25,3),VLOOKUP(I20,Feuil1!$G$11:$L$25,2))))))) -> C2 69 | AB20: =T20-HLOOKUP(X20,Feuil1!$C$1:$BJ$10,2,FALSE) -> 55 | AC20: =T20-HLOOKUP(X20,Feuil1!$C$1:$BJ$10,3,FALSE) -> 35 | AD20: =T20-HLOOKUP(X20,Feuil1!$C$1:$BJ$10,4,FALSE) -> 20 | AE20: =T20-HLOOKUP(X20,Feuil1!$C$1:$BJ$10,5,FALSE) -> 0 | AF20: =T20-HLOOKUP(X20,Feuil1!$C$1:$BJ$10,6,FALSE) -> -20 | AG20: =T20-HLOOKUP(X20,Feuil1!$C$1:$BJ$10,7,FALSE) -> -40 | AH20: =T20-HLOOKUP(X20,Feuil1!$C$1:$BJ$10,8,FALSE) -> -60 | AI20: =T20-HLOOKUP(X20,Feuil1!$C$1:$BJ$10,9,FALSE) -> -80 | AJ20: =T20-HLOOKUP(X20,Feuil1!$C$1:$BJ$10,10,FALSE) -> -850 | AQ20: IRG +
B21: Tirage au sort : | H21: Classement : | L21: =IF(Y21="","",RANK(Y21,$Z$6:$Z$11,0)) -> 5 | Y21: =SUM(U22:U24) -> 659.1771812
A22: H | B22: SEST | C22: RAL | D22: 1 | H22: 2003 | I22: 69 | L22: 60 | O22: 60 | P22: 75 | S22: 75 | T22: =IF(I22="","",O22+S22) -> 135 | U22: 181.6100397 | V22: IRG + | W22: 5 | X22: =IF(I22="","",IF(A22="H",IF(OR(H22="SEN",H22<1997),VLOOKUP(I22,Feuil1!$A$11:$G$29,6),IF(AND(H22>1996,H22<2000),VLOOKUP(I22,Feuil1!$A$11:$G$29,5),IF(AND(H22>1999,H22<2002),VLOOKUP(I22,Feuil1!$A$11:$G$29,4),IF(AND(H22>2001,H22<2004),VLOOKUP(I22,Feuil1!$A$11:$G$29,3),VLOOKUP(I22,Feuil1!$A$11:$G$29,2))))),IF(OR(H22="SEN",H22<1997),VLOOKUP(I22,Feuil1!$G$11:$L$25,6),IF(AND(H22>1996,H22<2000),VLOOKUP(I22,Feuil1!$G$11:$L$25,5),IF(AND(H22>1999,H22<2002),VLOOKUP(I22,Feuil1!$G$11:$L$25,4),IF(AND(H22>2001,H22<2004),VLOOKUP(I22,Feuil1!$G$11:$L$25,3),VLOOKUP(I22,Feuil1!$G$11:$L$25,2))))))) -> C1 69 | AB22: =T22-HLOOKUP(X22,Feuil1!$C$1:$BJ$10,2,FALSE) -> 50 | AC22: =T22-HLOOKUP(X22,Feuil1!$C$1:$BJ$10,3,FALSE) -> 30 | AD22: =T22-HLOOKUP(X22,Feuil1!$C$1:$BJ$10,4,FALSE) -> 20 | AE22: =T22-HLOOKUP(X22,Feuil1!$C$1:$BJ$10,5,FALSE) -> 5 | AF22: =T22-HLOOKUP(X22,Feuil1!$C$1:$BJ$10,6,FALSE) -> -15 | AG22: =T22-HLOOKUP(X22,Feuil1!$C$1:$BJ$10,7,FALSE) -> -35 | AH22: =T22-HLOOKUP(X22,Feuil1!$C$1:$BJ$10,8,FALSE) -> -55 | AI22: =T22-HLOOKUP(X22,Feuil1!$C$1:$BJ$10,9,FALSE) -> -75 | AJ22: =T22-HLOOKUP(X22,Feuil1!$C$1:$BJ$10,10,FALSE) -> -865 | AQ22: IRG +
A23: H | B23: SEST | C23: RAL | D23: 1 | H23: 2000 | I23: 69 | L23: 90 | O23: 90 | P23: 115 | S23: 115 | T23: =IF(I23="","",O23+S23) -> 205 | U23: 275.7782085 | V23: NAT + | W23: 15 | X23: =IF(I23="","",IF(A23="H",IF(OR(H23="SEN",H23<1997),VLOOKUP(I23,Feuil1!$A$11:$G$29,6),IF(AND(H23>1996,H23<2000),VLOOKUP(I23,Feuil1!$A$11:$G$29,5),IF(AND(H23>1999,H23<2002),VLOOKUP(I23,Feuil1!$A$11:$G$29,4),IF(AND(H23>2001,H23<2004),VLOOKUP(I23,Feuil1!$A$11:$G$29,3),VLOOKUP(I23,Feuil1!$A$11:$G$29,2))))),IF(OR(H23="SEN",H23<1997),VLOOKUP(I23,Feuil1!$G$11:$L$25,6),IF(AND(H23>1996,H23<2000),VLOOKUP(I23,Feuil1!$G$11:$L$25,5),IF(AND(H23>1999,H23<2002),VLOOKUP(I23,Feuil1!$G$11:$L$25,4),IF(AND(H23>2001,H23<2004),VLOOKUP(I23,Feuil1!$G$11:$L$25,3),VLOOKUP(I23,Feuil1!$G$11:$L$25,2))))))) -> C2 69 | AB23: =T23-HLOOKUP(X23,Feuil1!$C$1:$BJ$10,2,FALSE) -> 110 | AC23: =T23-HLOOKUP(X23,Feuil1!$C$1:$BJ$10,3,FALSE) -> 90 | AD23: =T23-HLOOKUP(X23,Feuil1!$C$1:$BJ$10,4,FALSE) -> 75 | AE23: =T23-HLOOKUP(X23,Feuil1!$C$1:$BJ$10,5,FALSE) -> 55 | AF23: =T23-HLOOKUP(X23,Feuil1!$C$1:$BJ$10,6,FALSE) -> 35 | AG23: =T23-HLOOKUP(X23,Feuil1!$C$1:$BJ$10,7,FALSE) -> 15 | AH23: =T23-HLOOKUP(X23,Feuil1!$C$1:$BJ$10,8,FALSE) -> -5 | AI23: =T23-HLOOKUP(X23,Feuil1!$C$1:$BJ$10,9,FALSE) -> -25 | AJ23: =T23-HLOOKUP(X23,Feuil1!$C$1:$BJ$10,10,FALSE) -> -795 | AQ23: NAT +
A24: H | B24: SEST | C24: RAL | D24: 1 | H24: 1997 | I24: 69 | L24: 65 | O24: 65 | P24: 85 | S24: 85 | T24: 150 | U24: 201.788933 | V24: REG + | W24: 0 | X24: =IF(I24="","",IF(A24="H",IF(OR(H24="SEN",H24<1997),VLOOKUP(I24,Feuil1!$A$11:$G$29,6),IF(AND(H24>1996,H24<2000),VLOOKUP(I24,Feuil1!$A$11:$G$29,5),IF(AND(H24>1999,H24<2002),VLOOKUP(I24,Feuil1!$A$11:$G$29,4),IF(AND(H24>2001,H24<2004),VLOOKUP(I24,Feuil1!$A$11:$G$29,3),VLOOKUP(I24,Feuil1!$A$11:$G$29,2))))),IF(OR(H24="SEN",H24<1997),VLOOKUP(I24,Feuil1!$G$11:$L$25,6),IF(AND(H24>1996,H24<2000),VLOOKUP(I24,Feuil1!$G$11:$L$25,5),IF(AND(H24>1999,H24<2002),VLOOKUP(I24,Feuil1!$G$11:$L$25,4),IF(AND(H24>2001,H24<2004),VLOOKUP(I24,Feuil1!$G$11:$L$25,3),VLOOKUP(I24,Feuil1!$G$11:$L$25,2))))))) -> J69 | AB24: =T24-HLOOKUP(X24,Feuil1!$C$1:$BJ$10,2,FALSE) -> 40 | AC24: =T24-HLOOKUP(X24,Feuil1!$C$1:$BJ$10,3,FALSE) -> 20 | AD24: =T24-HLOOKUP(X24,Feuil1!$C$1:$BJ$10,4,FALSE) -> 0 | AE24: =T24-HLOOKUP(X24,Feuil1!$C$1:$BJ$10,5,FALSE) -> -20 | AF24: =T24-HLOOKUP(X24,Feuil1!$C$1:$BJ$10,6,FALSE) -> -40 | AG24: =T24-HLOOKUP(X24,Feuil1!$C$1:$BJ$10,7,FALSE) -> -70 | AH24: =T24-HLOOKUP(X24,Feuil1!$C$1:$BJ$10,8,FALSE) -> -90 | AI24: =T24-HLOOKUP(X24,Feuil1!$C$1:$BJ$10,9,FALSE) -> -100 | AJ24: =T24-HLOOKUP(X24,Feuil1!$C$1:$BJ$10,10,FALSE) -> -850 | AQ24: REG +
B25: Tirage au sort : | H25: Classement : | L25: =IF(Y25="","",RANK(Y25,$Z$6:$Z$11,0)) -> 6 | Y25: =SUM(U26:U28) -> 484.2934393
A26: H | B26: SEST | C26: RAL | D26: 1 | H26: 2003 | I26: 69 | L26: 50 | O26: 50 | P26: 70 | S26: 70 | T26: =IF(I26="","",O26+S26) -> 120 | U26: 161.4311464 | V26: REG + | W26: 5 | X26: =IF(I26="","",IF(A26="H",IF(OR(H26="SEN",H26<1997),VLOOKUP(I26,Feuil1!$A$11:$G$29,6),IF(AND(H26>1996,H26<2000),VLOOKUP(I26,Feuil1!$A$11:$G$29,5),IF(AND(H26>1999,H26<2002),VLOOKUP(I26,Feuil1!$A$11:$G$29,4),IF(AND(H26>2001,H26<2004),VLOOKUP(I26,Feuil1!$A$11:$G$29,3),VLOOKUP(I26,Feuil1!$A$11:$G$29,2))))),IF(OR(H26="SEN",H26<1997),VLOOKUP(I26,Feuil1!$G$11:$L$25,6),IF(AND(H26>1996,H26<2000),VLOOKUP(I26,Feuil1!$G$11:$L$25,5),IF(AND(H26>1999,H26<2002),VLOOKUP(I26,Feuil1!$G$11:$L$25,4),IF(AND(H26>2001,H26<2004),VLOOKUP(I26,Feuil1!$G$11:$L$25,3),VLOOKUP(I26,Feuil1!$G$11:$L$25,2))))))) -> C1 69 | AB26: =T26-HLOOKUP(X26,Feuil1!$C$1:$BJ$10,2,FALSE) -> 35 | AC26: =T26-HLOOKUP(X26,Feuil1!$C$1:$BJ$10,3,FALSE) -> 15 | AD26: =T26-HLOOKUP(X26,Feuil1!$C$1:$BJ$10,4,FALSE) -> 5 | AE26: =T26-HLOOKUP(X26,Feuil1!$C$1:$BJ$10,5,FALSE) -> -10 | AF26: =T26-HLOOKUP(X26,Feuil1!$C$1:$BJ$10,6,FALSE) -> -30 | AG26: =T26-HLOOKUP(X26,Feuil1!$C$1:$BJ$10,7,FALSE) -> -50 | AH26: =T26-HLOOKUP(X26,Feuil1!$C$1:$BJ$10,8,FALSE) -> -70 | AI26: =T26-HLOOKUP(X26,Feuil1!$C$1:$BJ$10,9,FALSE) -> -90 | AJ26: =T26-HLOOKUP(X26,Feuil1!$C$1:$BJ$10,10,FALSE) -> -880 | AQ26: REG +
A27: H | B27: SEST | C27: RAL | D27: 1 | H27: 2004 | I27: 69 | L27: 50 | O27: 50 | P27: 55 | S27: 55 | T27: =IF(I27="","",O27+S27) -> 105 | U27: 141.2522531 | X27: =IF(I27="","",IF(A27="H",IF(OR(H27="SEN",H27<1997),VLOOKUP(I27,Feuil1!$A$11:$G$29,6),IF(AND(H27>1996,H27<2000),VLOOKUP(I27,Feuil1!$A$11:$G$29,5),IF(AND(H27>1999,H27<2002),VLOOKUP(I27,Feuil1!$A$11:$G$29,4),IF(AND(H27>2001,H27<2004),VLOOKUP(I27,Feuil1!$A$11:$G$29,3),VLOOKUP(I27,Feuil1!$A$11:$G$29,2))))),IF(OR(H27="SEN",H27<1997),VLOOKUP(I27,Feuil1!$G$11:$L$25,6),IF(AND(H27>1996,H27<2000),VLOOKUP(I27,Feuil1!$G$11:$L$25,5),IF(AND(H27>1999,H27<2002),VLOOKUP(I27,Feuil1!$G$11:$L$25,4),IF(AND(H27>2001,H27<2004),VLOOKUP(I27,Feuil1!$G$11:$L$25,3),VLOOKUP(I27,Feuil1!$G$11:$L$25,2))))))) -> NON | AB27: =T27-HLOOKUP(X27,Feuil1!$C$1:$BJ$10,2,FALSE) ->  | AC27: =T27-HLOOKUP(X27,Feuil1!$C$1:$BJ$10,3,FALSE) ->  | AD27: =T27-HLOOKUP(X27,Feuil1!$C$1:$BJ$10,4,FALSE) ->  | AE27: =T27-HLOOKUP(X27,Feuil1!$C$1:$BJ$10,5,FALSE) ->  | AF27: =T27-HLOOKUP(X27,Feuil1!$C$1:$BJ$10,6,FALSE) ->  | AG27: =T27-HLOOKUP(X27,Feuil1!$C$1:$BJ$10,7,FALSE) ->  | AH27: =T27-HLOOKUP(X27,Feuil1!$C$1:$BJ$10,8,FALSE) ->  | AI27: =T27-HLOOKUP(X27,Feuil1!$C$1:$BJ$10,9,FALSE) ->  | AJ27: =T27-HLOOKUP(X27,Feuil1!$C$1:$BJ$10,10,FALSE) -> 
A28: H | B28: SEST | C28: RAL | D28: 1 | H28: 2000 | I28: 69 | L28: 60 | O28: 60 | P28: 75 | S28: 75 | T28: 135 | U28: 181.6100397 | V28: REG + | W28: 5 | X28: =IF(I28="","",IF(A28="H",IF(OR(H28="SEN",H28<1997),VLOOKUP(I28,Feuil1!$A$11:$G$29,6),IF(AND(H28>1996,H28<2000),VLOOKUP(I28,Feuil1!$A$11:$G$29,5),IF(AND(H28>1999,H28<2002),VLOOKUP(I28,Feuil1!$A$11:$G$29,4),IF(AND(H28>2001,H28<2004),VLOOKUP(I28,Feuil1!$A$11:$G$29,3),VLOOKUP(I28,Feuil1!$A$11:$G$29,2))))),IF(OR(H28="SEN",H28<1997),VLOOKUP(I28,Feuil1!$G$11:$L$25,6),IF(AND(H28>1996,H28<2000),VLOOKUP(I28,Feuil1!$G$11:$L$25,5),IF(AND(H28>1999,H28<2002),VLOOKUP(I28,Feuil1!$G$11:$L$25,4),IF(AND(H28>2001,H28<2004),VLOOKUP(I28,Feuil1!$G$11:$L$25,3),VLOOKUP(I28,Feuil1!$G$11:$L$25,2))))))) -> C2 69 | AB28: =T28-HLOOKUP(X28,Feuil1!$C$1:$BJ$10,2,FALSE) -> 40 | AC28: =T28-HLOOKUP(X28,Feuil1!$C$1:$BJ$10,3,FALSE) -> 20 | AD28: =T28-HLOOKUP(X28,Feuil1!$C$1:$BJ$10,4,FALSE) -> 5 | AE28: =T28-HLOOKUP(X28,Feuil1!$C$1:$BJ$10,5,FALSE) -> -15 | AF28: =T28-HLOOKUP(X28,Feuil1!$C$1:$BJ$10,6,FALSE) -> -35 | AG28: =T28-HLOOKUP(X28,Feuil1!$C$1:$BJ$10,7,FALSE) -> -55 | AH28: =T28-HLOOKUP(X28,Feuil1!$C$1:$BJ$10,8,FALSE) -> -75 | AI28: =T28-HLOOKUP(X28,Feuil1!$C$1:$BJ$10,9,FALSE) -> -95 | AJ28: =T28-HLOOKUP(X28,Feuil1!$C$1:$BJ$10,10,FALSE) -> -865 | AQ28: REG +
B31: Secrétaire : | J31: 1
I32: ARBITRES : 2 | R32: Signatures :
B33: Contrôleur Technique 1 : | J33: 3
B34: Contrôleur Technique 2 :
B35: Chronométreur : | J35: JURY :
AB530: J77 | AC530: J85 | AD530: J94 | AE530: J105 | AF530: J+105 | AH530: J56 | AI530: J62 | AJ530: J69 | AK530: J77 | AL530: J85 | AM530: J94 | AN530: J105 | AO530: J+105 | AQ530: S56 | AR530: S62 | AS530: S69 | AT530: S77 | AU530: S85 | AV530: S94 | AW530: S105 | AX530: S+105
AB531: 145 | AC531: 160 | AD531: 170 | AE531: 180 | AF531: 190 | AH531: 100 | AI531: 115 | AJ531: 130 | AK531: 145 | AL531: 160 | AM531: 170 | AN531: 180 | AO531: 190 | AQ531: 115 | AR531: 135 | AS531: 150 | AT531: 165 | AU531: 180 | AV531: 190 | AW531: 200 | AX531: 210
AB532: 165 | AC532: 180 | AD532: 190 | AE532: 200 | AF532: 210 | AH532: 115 | AI532: 135 | AJ532: 150 | AK532: 165 | AL532: 180 | AM532: 190 | AN532: 200 | AO532: 210 | AQ532: 130 | AR532: 150 | AS532: 165 | AT532: 185 | AU532: 200 | AV532: 210 | AW532: 220 | AX532: 230
AB533: 185 | AC533: 200 | AD533: 210 | AE533: 220 | AF533: 230 | AH533: 130 | AI533: 150 | AJ533: 165 | AK533: 185 | AL533: 200 | AM533: 210 | AN533: 220 | AO533: 230 | AQ533: 145 | AR533: 165 | AS533: 180 | AT533: 200 | AU533: 220 | AV533: 230 | AW533: 240 | AX533: 250
AB534: 200 | AC534: 220 | AD534: 230 | AE534: 240 | AF534: 250 | AH534: 145 | AI534: 165 | AJ534: 180 | AK534: 200 | AL534: 220 | AM534: 230 | AN534: 240 | AO534: 250 | AQ534: 175 | AR534: 195 | AS534: 215 | AT534: 235 | AU534: 250 | AV534: 260 | AW534: 275 | AX534: 280
AB535: 235 | AC535: 250 | AD535: 260 | AE535: 275 | AF535: 280 | AH535: 175 | AI535: 195 | AJ535: 215 | AK535: 235 | AL535: 250 | AM535: 260 | AN535: 275 | AO535: 280 | AQ535: 210 | AR535: 230 | AS535: 250 | AT535: 270 | AU535: 290 | AV535: 300 | AW535: 310 | AX535: 325
AB536: 270 | AC536: 290 | AD536: 300 | AE536: 310 | AF536: 325 | AH536: 210 | AI536: 230 | AJ536: 250 | AK536: 270 | AL536: 290 | AM536: 300 | AN536: 310 | AO536: 325 | AQ536: 230 | AR536: 255 | AS536: 275 | AT536: 300 | AU536: 315 | AV536: 335 | AW536: 345 | AX536: 355
AB537: 320 | AC537: 335 | AD537: 355 | AE537: 370 | AF537: 380 | AH537: 245 | AI537: 270 | AJ537: 295 | AK537: 320 | AL537: 335 | AM537: 355 | AN537: 370 | AO537: 380 | AQ537: 245 | AR537: 270 | AS537: 295 | AT537: 320 | AU537: 335 | AV537: 355 | AW537: 370 | AX537: 380

Sheet Feuil2
